Cogmind - Beta 16.1 @@@ ROGUE MODE // 2026.04.27 @ 17:51:13 Player: Dwarfinator Result: Destroyed by H-71 Marshal via exploding Fusion Modulator Performance ------------- Evolutions (6) 3000 Regions Visited (23) 4600 Robots Destroyed (474) 2370 Value Destroyed (18372) 18372 Prototype IDs (57) 1140 Alien Tech Used (0) 0 Bonus (15048) 15048 TOTAL SCORE: 44530 Bonus ------- Triggered High Security 1000 High Alert Combat Kills 8282 Follower Combat Kills 10818 Hunted by Unchained 1000 Destroyed Unchained 1000 Subatomizer Sterilization 3000 Entered Garrisons 800 Used RIF Installer 1500 Network Hubs Disabled 400 Built Enhanced Grunts 300 Met R17 at Cetus 500 Friendly Fire -13552 Cogmind --------- Core Integrity 0/1150 Matter 247/300 Energy 84/100 System Corruption 12% Temperature Cool (12) Movement Core (150) Ox2 Location -4/Factory Parts ------- > --- POWER (2) -------- (None) > --- PROPULSION (5) --- Gravmag Array > --- UTILITY (6) ------ Graphene Brace > --- WEAPON (6) ------- Scatter Rocket Array > --- INVENTORY (5) ---- Enhanced Fission Core Improved Medium Treads Huge Storage Unit Phase Gun Peak State ------------ > --- POWER ------------ Quantum Reactor > --- PROPULSION ------- Centrium Heavy Treads Centrium Heavy Treads > --- UTILITY ---------- Advanced Cooling System Advanced Cooling System Huge Storage Unit Medium Regenerative Plating Graphene Brace Advanced Shield Generator > --- WEAPON ----------- Enhanced Force Rifle Enhanced Force Rifle Enhanced Force Rifle Nova Cannon Advanced KE Penetrator Advanced KE Penetrator > --- INVENTORY -------- Hybrid Deuterium Engine Quantum Reactor Thunder Leg Cargo Legs Advanced Cooling System Advanced Energy Well Matter Compressor Improved Transmission Jammer Damper Plating Long-range Tractor Beam Powered Cannon Advanced KE Penetrator Advanced KE Penetrator Advanced KE Penetrator Tesla Bomb Launcher Long-range Missile Launcher Scatter Rocket Array Advanced Remote Datajack Multitool Ripper [Rating: 139] Favorites ----------- Power Antimatter Reactor Engine Reinforced Deuterium Engine Power Core Enhanced Fission Core Reactor Antimatter Reactor Propulsion Armored Huge Wheel Treads Centrium Heavy Treads Leg Flexi-carbon Leg Wheel Armored Huge Wheel Hover Unit Antigrav System Flight Unit VTOL Module Utility Huge Storage Unit Device Seismic Detector Storage Huge Storage Unit Processor Advanced Signal Interpreter Hackware Improved Hacking Suite Protection Layered Heavy Armor Plating Weapon 1B-0RG's Assimilator Energy Gun Enhanced Force Rifle Energy Cannon Nova Cannon Ballistic Gun Advanced KE Penetrator Ballistic Cannon Heavy Gauss Cannon Launcher Mini Grenade Launcher Special Weapon Advanced Remote Datajack Impact Weapon Impact Mace Slashing Weapon Makeshift Axe Special Melee Weapon 1B-0RG's Assimilator Build | -11 -10 -10 -10 -8 -8 -8 -8 -7 -7 -6 -6 -6 -6 -6 -6 -5 -5 -5 -5 -5 -5 -5 -4 ------- Run | Yrd Mat Min Sub Mat Gar Mat Gar Fac Sto Fac Was Fac Gar Fac Gar Fac Was Fac Ext Cet Arc Hub Fac Slots Evolved 12 | . . . . 4 . . . 2 . 2 . . . . . 2 . . . . . . 2 Power 1 | . . . . . . . . . . . . . . . . . . . . . . . 1 Propulsion 3 | . . . . . . . . . . . . . . . . 2 . . . . . . 1 Utility 4 | . . . . . . . . 2 . 2 . . . . . . . . . . . . . Weapon 4 | . . . . 4 . . . . . . . . . . . . . . . . . . . Parts Attached 314 | 8 11 3 19 35 3 3 1 9 23 14 4 6 4 31 33 13 7 8 6 13 5 18 37 Power 19 | 2 1 . 3 2 . . . . 2 . 1 . . . 2 1 1 . . 1 . 1 2 Engine 11 | 2 1 . 3 2 . . . . 2 . . . . . 1 . . . . . . . . Core 2 | . . . . . . . . . . . . . . . . . . . . . . . 2 Reactor 6 | . . . . . . . . . . . 1 . . . 1 1 1 . . 1 . 1 . Propulsion 50 | 2 2 1 4 8 . 2 1 . 1 . . 1 . . 4 1 1 . . 3 . 5 14 Treads 10 | 2 . . . 4 . . . . . . . . . . . . . . . 3 . . 1 Leg 12 | . . . . . . . . . . . . . . . 3 . 1 . . . . 4 4 Wheel 19 | . 2 1 4 4 . 2 1 . 1 . . 1 . . 1 1 . . . . . . 1 Hover 6 | . . . . . . . . . . . . . . . . . . . . . . 1 5 Flight 3 | . . . . . . . . . . . . . . . . . . . . . . . 3 Utility 137 | 2 3 1 2 6 . . . 8 13 11 2 4 3 23 13 6 2 5 4 6 4 7 12 Device 66 | 1 . . . . . . . 3 6 4 2 1 . 10 8 2 1 3 4 5 4 4 8 Storage 14 | 1 2 1 2 . . . . 1 2 2 . . . 2 . . . . . . . 1 . Processor 10 | . . . . . . . . 3 1 3 . . . 1 . . . . . . . . 2 Hackware 24 | . . . . 3 . . . . 2 . . 1 3 6 2 4 1 1 . . . . 1 Protection 23 | . 1 . . 3 . . . 1 2 2 . 2 . 4 3 . . 1 . 1 . 2 1 Artifact . | . . . . . . . . . . . . . . . . . . . . . . . . Weapon 108 | 2 5 1 10 19 3 1 . 1 7 3 1 1 1 8 14 5 3 3 2 3 1 5 9 Energy Gun 28 | 2 4 1 2 1 . . . . 3 . . . . 2 5 1 1 1 1 . . . 4 Energy Cannon 12 | . . . . 1 . 1 . . . 1 . 1 . 3 . 2 1 . . . . 1 1 Ballistic Gun 34 | . . . 4 9 2 . . . 1 . . . . 1 7 1 . 1 . 2 1 3 2 Ballistic Cannon 7 | . . . 1 2 . . . . . . 1 . . . 2 . . . . . . . 1 Launcher 13 | . . . 2 2 1 . . . 2 2 . . 1 1 . . . 1 . . . 1 . Special Weapon 6 | . 1 . 1 1 . . . 1 . . . . . . . . 1 . . . . . 1 Impact Weapon 1 | . . . . . . . . . 1 . . . . . . . . . . . . . . Slashing Weapon 5 | . . . . 1 . . . . . . . . . 1 . 1 . . 1 1 . . . Piercing Weapon . | . . . . . . . . . . . . . . . . . . . . . . . . Special Melee Weapon 2 | . . . . 2 . . . . . . . . . . . . . . . . . . . Unidentified Prototypes 26 | . 1 . . 7 . . . . 5 . 1 . . 1 1 3 1 1 . 2 . 1 2 Corrupted Parts 5 | . . . . . . . . . . . . . . . . . . . . . 1 4 . System Corruption 23 | . . . . . . . . . . . . . . . . . . . . . 8 15 . Parts Lost 61 | . . 3 4 2 . . . . 2 . . . 1 4 4 1 . . . . . 19 21 Power 2 | . . . 1 . . . . . . . . . . . 1 . . . . . . . . Propulsion 20 | . . 1 3 . . . . . 1 . . . . . 1 . . . . . . 6 8 Utility 21 | . . 1 . . . . . . 1 . . . 1 3 1 . . . . . . 5 9 Weapon 18 | . . 1 . 2 . . . . . . . . . 1 1 1 . . . . . 8 4 Highest Loss Streak 17 | . . 3 3 1 . . . . 2 . . . 1 2 2 1 . . . . . 17 4 To Critical Strikes . | . . . . . . . . . . . . . . . . . . . . . . . . Average Backups 19 | 5 14 24 20 18 17 17 14 16 20 21 22 21 21 21 21 22 19 19 19 19 20 19 4 Power 1 | . . 1 1 . . . . . 2 1 1 1 1 1 1 2 1 2 2 1 2 1 . Propulsion 3 | 3 4 4 4 4 4 3 3 3 2 2 2 2 2 3 2 1 2 3 3 2 2 2 . Utility 8 | . 3 8 6 5 6 6 4 6 8 10 11 10 11 10 12 13 9 10 9 6 6 6 1 Weapon 5 | 1 6 10 7 6 5 5 3 3 5 5 5 5 4 4 3 4 4 3 3 7 8 7 2 Tool/Special . | . . . . . . . . . . . . . . . . . . . . . . . . Unused Backups 115 | 2 13 . 16 11 2 1 4 10 7 4 . . 4 6 17 4 2 1 2 2 . 3 4 Power 10 | . . . 1 . . . . 1 1 1 . . . . 2 2 1 . . . . 1 . Propulsion 22 | 2 5 . 1 2 . . . 7 . 1 . . . 2 2 . . . . . . . . Utility 59 | . 3 . 8 5 2 1 3 1 3 . . . 4 4 12 1 1 1 2 2 . 2 4 Weapon 23 | . 5 . 6 3 . . 1 1 3 2 . . . . 1 1 . . . . . . . Tool/Special 1 | . . . . 1 . . . . . . . . . . . . . . . . . . . Average Slot Usage (%) 76 | . 99 98 98 82 53 53 55 60 60 65 66 63 59 62 86 81 82 82 82 83 84 79 48 Engine 5 | . 13 14 13 8 9 8 9 7 7 6 . . . . . . . . . . . . . Reactor 2 | . . . . . . . . . . . 5 6 6 5 5 5 5 5 5 5 5 4 . Treads 1 | . 18 2 . . . . . . . . . . . . . . . . . 9 11 10 . Wheel 11 | . 9 25 27 17 18 18 16 7 6 6 6 6 6 6 5 10 10 11 11 1 . . 2 Device 9 | . 13 10 12 2 . . . 6 9 16 20 10 5 9 15 5 11 5 5 15 23 18 15 Storage 8 | . 14 14 14 8 9 9 8 7 9 7 6 6 6 7 6 5 5 5 5 5 5 5 . Hackware 3 | . . . . 2 . . . . . . . 5 13 11 4 10 5 10 11 1 . . 1 Protection 4 | . . 2 . 3 . . 3 6 8 8 6 6 6 6 6 5 5 5 5 5 2 4 1 Energy Gun 6 | . 24 28 12 . . . . . 1 . . . . . 10 14 10 11 13 13 16 14 2 Energy Cannon 1 | . . . . 2 . 1 . . . . . . . 3 6 3 5 5 5 . . . . Ballistic Gun 6 | . . . 12 22 . . . . . . . . . . 8 5 5 5 5 10 11 11 3 Special Weapon 1 | . 2 . 1 . . . . . . . . . 1 . 2 5 5 5 3 3 4 . 2 Slashing Weapon 3 | . . . . 6 8 7 9 6 5 5 3 4 4 2 4 2 5 5 5 5 1 4 . Special Melee Weapon 3 | . . . . 3 9 9 9 7 7 6 6 6 6 5 . . . . . . . . . Peak Build Rating 139 | 7 13 15 39 101 103 102 107 113 107 118 125 125 118 123 93 90 99 101 100 131 134 139 88 Average Rating 82 | 5 9 12 17 56 101 101 101 102 102 111 121 120 116 113 83 84 97 97 97 121 125 127 53 On Entrance 82 | . 7 12 13 39 100 101 102 107 100 102 118 121 116 118 77 85 87 99 97 99 128 132 10 Avg Prop Armor Cover (%) 7 | . 13 13 5 . . . . . . . . . . . . . . . . . . . 7 Naked Turns . | . . . . . . . . . . . . . . . . . . . . . . . . Heaviest Build 278 | 14 54 94 211 273 276 278 273 166 188 180 173 178 179 179 163 152 156 158 150 154 146 183 45 Greatest Support 160 | 40 40 40 30 42 26 26 28 28 28 28 28 28 28 28 56 56 56 56 56 160 160 160 83 Greatest Overweight (x) 13 | 1 5 5 9 10 10 13 13 5 6 6 6 6 6 6 5 2 2 2 2 5 . 7 4 Average Overweight (x) 4 | . . 4 4 4 10 10 10 5 5 5 5 5 6 5 4 2 2 2 2 . . . . Largest Inventory Capacity 35 | 8 20 25 35 35 35 35 35 25 25 25 25 25 25 25 25 25 25 25 25 25 25 25 5 Average Capacity 24 | 7 14 24 26 25 35 35 31 25 25 25 25 25 25 25 25 25 25 25 25 25 25 24 5 Most Carried 35 | 8 20 25 35 35 35 35 35 25 25 25 25 25 25 25 25 25 25 25 25 25 25 25 5 Average Carried 24 | 5 14 24 25 24 34 34 30 23 24 24 24 24 24 24 24 24 24 24 24 24 25 23 4 Final Capacity 35 | 8 20 25 35 35 35 35 25 25 25 25 25 25 25 25 25 25 25 25 25 25 25 5 5 Final Carried 35 | 8 20 25 35 35 35 35 25 25 25 25 25 25 25 24 25 25 24 25 25 25 25 5 4 Class Distribution -------------------- 46% | Mutant 17% | Executioner 8% | Hauler-Mutant 7% | Commander-Executioner 4% | Scavenger-Executioner 3% | Bothacker-Executioner 3% | Hacker-Mutant 3% | Commander-Mutant Dominant Class ---------------- Mutant | -10/Materials Mutant | -10/Mines Mutant | -10/Subcaves Executioner | -8/Materials Hauler-Mutant | -8/Garrison Hauler-Mutant | -8/Materials Hauler-Mutant | -8/Garrison Mutant | -7/Factory Mutant | -7/Storage Mutant | -6/Factory Mutant | -6/Waste Mutant | -6/Factory Bothacker-Mutant | -6/Garrison Mutant | -6/Factory Scavenger-Executioner | -6/Garrison Bothacker-Executioner | -5/Factory Executioner | -5/Waste Executioner | -5/Factory Commander-Executioner | -5/Extension Commander-Executioner | -5/Cetus Commander-Executioner | -5/Archives Scavenger-Executioner | -5/Hub_04(d) Mutant | -4/Factory Resources | -11 -10 -10 -10 -8 -8 -8 -8 -7 -7 -6 -6 -6 -6 -6 -6 -5 -5 -5 -5 -5 -5 -5 -4 ----------- Run | Yrd Mat Min Sub Mat Gar Mat Gar Fac Sto Fac Was Fac Gar Fac Gar Fac Was Fac Ext Cet Arc Hub Fac Matter Collected 33643 | 280 520 335 1811 4718 1041 548 824 933 6159 1062 350 621 1338 5633 1380 583 599 242 564 309 834 2141 818 Remotely 8737 | . . . . . . . . . 3426 405 . 227 33 3221 . 222 . . . . . 1203 . Salvage Created 22356 | 136 336 120 303 2248 85 225 183 460 2427 1345 575 416 166 1135 2031 504 569 528 1312 500 305 5429 1018 Parts 1037 | 15 32 2 22 147 9 9 5 19 120 63 7 13 9 54 81 14 29 27 53 19 19 235 34 Haulers Intercepted 11 | . . . . 6 . . . 1 3 . . . . . . 1 . . . . . . . Recyclers Shooed 6 | . . . . 1 . . . . 1 . . 1 . 1 . . . . 1 . . . 1 Parts Field Recycled . | . . . . . . . . . . . . . . . . . . . . . . . . Retrieved Matter . | . . . . . . . . . . . . . . . . . . . . . . . . Parts Self-Destructed 14 | . . . 14 . . . . . . . . . . . . . . . . . . . . Prevented . | . . . . . . . . . . . . . . . . . . . . . . . . Parts Restored 5 | . . . . . . . . . . . 3 . . . . . 2 . . . . . . Broken 5 | . . . . . . . . . . . 3 . . . . . 2 . . . . . . Kills | -11 -10 -10 -10 -8 -8 -8 -8 -7 -7 -6 -6 -6 -6 -6 -6 -5 -5 -5 -5 -5 -5 -5 -4 ------- Run | Yrd Mat Min Sub Mat Gar Mat Gar Fac Sto Fac Was Fac Gar Fac Gar Fac Was Fac Ext Cet Arc Hub Fac Combat Hostiles Destroyed 289 | . 8 1 16 36 3 3 . 1 34 10 . 1 4 11 33 4 . 6 14 5 1 75 23 Melee 9 | . . . . 2 . . . . . . . . 1 1 4 . . . 1 . . . . Guns 141 | . 8 . 5 26 1 . . . 3 . . . . . 16 2 . 2 13 4 1 52 8 Cannons 35 | . . . 1 5 . . . . . 1 . . . 5 10 1 . 3 . . . 2 7 AOE 77 | . . . 10 3 2 3 . 1 31 8 . . 3 4 . . . . . . . 8 4 Classes Destroyed 24 | 2 4 . 2 10 1 1 . . 2 . . . . . 1 . . . . . . 1 . Worker 63 | . 3 . . 11 . 1 . 4 24 2 . 1 . 3 . . . 1 1 . . 12 . Builder 18 | . . . . 1 . . . . 8 1 . . . 3 . . . . . . . 4 1 Tunneler 15 | 3 . . . 4 . . . . . 2 . . . 2 . . . 2 . . . 2 . Hauler 11 | . . . . 6 . . . 1 3 . . . . . . 1 . . . . . . . Recycler 35 | 1 2 . . 2 . 1 . 3 10 5 . 2 . 4 . 1 . 1 1 . . 1 1 Mechanic 6 | . . . . 1 . 1 . 1 3 . . . . . . . . . . . . . . Operator 10 | . . . . 2 . 1 . . 1 . . 1 . . . . . . . . 5 . . Watcher 9 | . 2 . . 2 . . . . . . . . . . 1 1 . . 2 1 . . . Swarmer 51 | . 6 . 6 10 . . . . . 3 . . 3 . 7 . . 1 3 . . 3 9 Cutter 2 | . . . . . 2 . . . . . . . . . . . . . . . . . . Saboteur 2 | . . . . . . . . . . . . . . . . . . . . . . 2 . Grunt 88 | . 2 . . 12 1 2 . 1 14 5 . 1 . 4 6 . . . 6 . . 29 5 Brawler 27 | . . . . 2 . . . . 4 1 . . . 2 4 . . . 1 . . 12 1 Duelist 11 | . . . . 2 . . . . 4 1 . . . 1 . . . . . . . 3 . Protector 9 | . . . . 1 . . . . 2 1 . . . 1 . . . . . . . 4 . Sentry 43 | . . . . 7 . . . . 6 . . . 1 1 13 . 1 2 5 . 1 6 . Demolisher 4 | . . . . . . 1 . . 2 . . . . . 1 . . . . . . . . Specialist 8 | . . . . . . . . . 4 . . . . 1 . . . . . . . 3 . Hunter 8 | . . . . 1 . . . . . . . . . . . 2 . . . . . 2 3 Programmer 20 | . . . . . . . . . 1 . . . . 1 2 2 . 3 . . . 6 5 Heavy 2 | . . . . 1 . . . . . . . . . . . . . . . . . 1 . Behemoth 1 | . . . . . . . . . . . . . . . 1 . . . . . . . . Cetus Guard 5 | . . . . . . . . . . . . . . . . . . . . 5 . . . Enhanced Grunt 1 | . . . . . . . . . . . . . . . . . . . . . . 1 . Lightning 6 | . . . . . . . . . . . . . . . . . . . . . . 6 . Artisan 1 | . . . 1 . . . . . . . . . . . . . . . . . . . . Subdweller 10 | . . . 10 . . . . . . . . . . . . . . . . . . . . Wasp 5 | . . . . . . . . . . . . . . . . . 5 . . . . . . Thug 2 | . . . . . . . . . . . . . . . . . 2 . . . . . . Butcher 1 | . . . . . . . . . . . . . . . . . . . . 1 . . . Martyr 2 | . . . . . . . . . . . . . . . . . 2 . . . . . . Guerrilla 2 | . . . . . . . . . . . . . . . . . . . 2 . . . . Best Kill Streak 23 | 2 3 1 6 7 2 3 . 3 21 6 . 2 3 4 8 2 . 4 4 5 2 23 7 Combat Bots Only 23 | . 3 1 6 7 2 3 . 1 20 5 . 1 3 4 8 1 . 3 4 4 1 23 7 Max Kills in Single Turn 7 | 1 2 1 3 2 2 2 . 1 7 3 . 1 2 3 1 1 4 1 2 3 1 6 4 Gunslinging 1 | . 1 . . 1 . . . . . . . . . . . . . . . 1 . 1 . Exploded 6 | . . . 3 2 2 2 . 1 6 3 . . 2 3 . . . . . . . 5 4 Melee 1 | . . . . 1 . . . . . . . . 1 1 1 . . . 1 . . . . Uniques/NPCs Destroyed 2 | . . 1 . . . . . . 1 . . . . . . . . . . . . . . YI-UF0 (-10/Mines) DW-4LL (-7/Storage) Combat | -11 -10 -10 -10 -8 -8 -8 -8 -7 -7 -6 -6 -6 -6 -6 -6 -5 -5 -5 -5 -5 -5 -5 -4 -------- Run | Yrd Mat Min Sub Mat Gar Mat Gar Fac Sto Fac Was Fac Gar Fac Gar Fac Was Fac Ext Cet Arc Hub Fac Hostile Shots Fired 2174 | . 29 16 48 108 35 11 11 53 149 43 . 9 18 130 513 30 . 16 25 9 . 599 322 Missed 678 | . 5 3 19 30 15 5 4 18 59 15 . 1 6 39 142 8 . 4 5 4 . 152 144 Hits 1496 | . 24 13 29 78 20 6 7 35 90 28 . 8 12 91 371 22 . 12 20 5 . 447 178 Melee 25 | . . . . . 1 . . . 1 . . . . 2 6 . . . . . . 10 5 Projectile 1471 | . 24 13 29 78 19 6 7 35 89 28 . 8 12 89 365 22 . 12 20 5 . 437 173 AOE 57 | . . 16 8 . 1 1 1 . 19 . . . . 3 . . . . . . . . 8 Critical Strikes 56 | . 1 . . 3 1 . . . 1 . . . . 2 4 1 . . 1 2 . 32 8 Actively Blocked 17 | . . . . . . . . . . . . . . . . . . . . . . 9 8 Part Disruptions 1 | . . . . . . . . . . . . . . . . . . . . . . 1 . Damage Taken 22499 | . 218 487 834 1550 345 149 262 431 1511 404 . 99 227 1592 2884 434 99 253 480 161 . 6806 3273 Core 3814 | . 6 53 171 291 66 36 143 79 202 142 . 11 72 203 233 33 . 19 . . . 903 1151 Absorbed by Shields 2003 | . . . . 3 31 . . . 195 133 . 36 14 205 968 . . . 6 21 . 175 216 Reduced by Siege Mode 219 | . . . . . . . . . . . . . . . . . . . . . . 219 . Redirected to Shielding 7 | . . . . . . . . . . 7 . . . . . . . . . . . . . Ignored by Resistances 4658 | . . . . 6 . . . . 119 69 . . . . . . . . . . . 4308 156 Regen/Repaired (Parts) 3148 | . . . . 677 142 409 50 154 93 349 . . 47 272 . . 332 41 282 208 . 92 . Core Remaining (%) 32 | 100 . . 8 . . . 2 . 59 . . . . . 22 . . . . . . 4 . Volleys Fired 1381 | 7 46 4 38 84 8 8 . 2 50 13 31 12 16 99 121 69 320 13 77 35 74 165 89 Largest 6 | 2 2 2 2 6 1 1 . 1 1 1 1 1 1 2 6 4 2 4 4 5 5 5 3 Hottest 319 | 90 130 90 130 196 40 75 . 40 80 100 54 88 49 125 319 292 146 305 273 313 313 313 168 Shots Fired 2337 | 14 67 8 57 268 8 7 . 2 49 13 31 12 16 104 252 104 322 30 155 66 93 510 149 Gun 1614 | 14 45 8 37 228 7 . . . 29 . . . . . 132 50 282 18 112 40 50 471 91 Cannon 408 | . . . 5 32 . 5 . . . 2 31 7 . 91 96 42 . 11 10 . . 21 55 Launcher 66 | . . . 9 3 1 2 . 1 17 10 . . 2 2 . . . . . . . 18 1 Special 249 | . 22 . 6 5 . . . 1 3 1 . 5 14 11 24 12 40 1 33 26 43 . 2 Kinetic 844 | . . . 28 235 8 2 . 1 3 . 31 2 . . 86 12 . 8 31 13 8 293 83 Thermal 1034 | 14 67 . 25 30 . . . . 29 2 . . 7 91 154 80 24 21 91 52 85 199 63 Explosive 28 | . . . 4 3 . . . . 12 2 . . 2 2 . . . . . . . 2 1 Electromagnetic 323 | . . 8 . . . 5 . . 2 8 . 5 . . . . 279 . . . . 16 . Robot Hit Streak 25 | 8 8 10 15 16 3 3 . 4 11 5 14 2 8 25 20 14 14 7 14 9 7 12 10 Robot Miss Streak 7 | 2 6 2 4 4 1 1 . . 4 4 2 2 1 3 7 3 5 2 5 3 4 6 4 Penetration Max 1 | . . . . . . . . . . . . . . . 1 . . . 1 1 . 1 1 Secondary Targets 36 | . 1 . . 5 . . . . . . . . . . 2 . . . 2 3 . 23 . Max Gunslinging Chain 2 | . 1 . . 1 . . . . . . . . . . 1 . . . 1 1 . 2 . Shots Hit Robots 1795 | 9 39 7 33 202 5 9 15 15 106 20 32 12 14 68 206 53 225 17 107 104 60 328 109 Core Hits 1128 | 5 53 4 29 80 5 10 4 6 244 32 7 4 8 51 107 28 66 7 34 42 28 231 43 Critical Kills 56 | . . . . 1 1 . . . . . . . . 1 1 . . 2 7 5 1 34 3 Critical Parts Destroyed 43 | . . . 1 1 1 . . . . . . . . . 1 . . . 4 4 3 27 1 Critical Strikes 134 | . 1 . 1 5 2 . 1 . 2 2 . . . 1 6 1 . 2 14 16 6 62 12 Burn 6 | . 1 . . . . . . . 2 . . . . . . . . . . . . . 3 Meltdown 5 | . . . . . . . . . . . . . . 1 . . . 1 . . . 1 2 Destroy 99 | . . . 1 2 2 . . . . . . . . . 2 . . 1 13 9 6 61 2 Blast 8 | . . . . 1 . . . . . . . . . . 2 . . . . . . . 5 Sever 16 | . . . . 2 . . 1 . . 2 . . . . 2 1 . . 1 7 . . . Melee Attacks 584 | . . . . 69 67 5 28 29 103 18 4 7 31 31 61 7 9 23 13 72 . 7 . Impact . | . . . . . . . . . . . . . . . . . . . . . . . . Slashing 581 | . . . . 66 67 5 28 29 103 18 4 7 31 31 61 7 9 23 13 72 . 7 . Piercing . | . . . . . . . . . . . . . . . . . . . . . . . . Sneak Attacks 222 | . . . . 37 . 4 . 9 54 10 . 6 1 15 1 2 9 4 12 56 . 2 . Combat Hostiles . | . . . . . . . . . . . . . . . . . . . . . . . . Follow-up Attacks . | . . . . . . . . . . . . . . . . . . . . . . . . Damage Inflicted 65448 | 105 531 126 1501 6447 194 954 762 887 10248 2099 1383 617 688 3509 5729 1122 2053 758 2777 4081 1006 14457 3414 Guns 22146 | 105 528 126 434 2453 36 . . . 752 . . . . . 2235 872 389 159 1843 984 811 8710 1709 Cannons 7508 | . . . 62 577 . 157 . . . 61 1065 121 . 1361 1810 75 . 316 87 . . 465 1351 Explosions 16053 | . . . 1005 349 158 519 . 66 5071 1209 . . 484 853 . . 891 . . . . 5098 350 Melee 19103 | . . . . 3052 . 278 762 821 4425 829 318 496 158 1295 1596 175 628 283 847 2973 . 167 . Ramming 24 | . 3 . . . . . . . . . . . . . . . . . . . . 17 4 Kinetic 16462 | . . . 912 2819 194 363 . 66 754 . 1065 . . . 1189 87 . 111 670 386 130 6063 1653 Thermal 15640 | 105 528 . 204 227 . 156 . . 752 61 . . 46 1361 2944 860 655 364 1260 722 876 3112 1407 Explosive 8899 | . . . 385 349 . . . . 4292 231 . . 484 853 . . . . . . . 1955 350 Electromagnetic 5320 | . . 126 . . . 157 . . 25 978 . 121 . . . . 770 . . . . 3143 . Impact . | . . . . . . . . . . . . . . . . . . . . . . . . Slashing 19103 | . . . . 3052 . 278 762 821 4425 829 318 496 158 1295 1596 175 628 283 847 2973 . 167 . Piercing . | . . . . . . . . . . . . . . . . . . . . . . . . Highest Corruption 58 | . . . . 1 3 4 4 . . 1 1 1 . 4 9 1 2 2 . . 8 58 12 Average Corruption 2 | . . . . 1 1 3 4 . . 1 1 1 . 3 5 1 1 1 . . 6 13 11 Corruption Purged 11 | . . . . . . . . . . . . 1 . . . . . 2 . . 8 . . Corruption Blocked 4 | . . . . . . . . . . . . . . . . . . . . . . . 4 Effects 268 | . . . . 38 13 22 10 . . 8 5 1 . 14 51 6 45 . . . 6 31 18 Message Errors 56 | . . . . 6 2 6 4 . . 3 1 . . 4 9 2 9 . . . 2 6 2 Matter Fused 73 | . . . . 13 3 7 3 . . 3 2 . . 2 20 . 11 . . . 1 4 4 Heat Flow Errors 33 | . . . . 4 2 3 1 . . 1 . . . 3 4 1 8 . . . 1 . 5 Energy Discharges 26 | . . . . 5 2 1 1 . . . 2 . . 1 2 2 4 . . . . 4 2 Parts Rejected 3 | . . . . 1 . . . . . . . . . . 1 . . . . . . 1 . Parts Fused 3 | . . . . . . . . . . . . . . . 1 . 1 . . . 1 . . Data Loss (minor) 28 | . . . . 4 3 2 1 . . 1 . 1 . 2 2 1 5 . . . 1 2 3 Data Loss (major) 15 | . . . . 3 1 1 . . . . . . . 1 5 . 4 . . . . . . Misfires 7 | . . . . 2 . . . . . . . . . 1 2 . 2 . . . . . . Alerts 3 | . . . . . . 1 . . . . . . . . 2 . . . . . . . . Misdirections 5 | . . . . . . . . . . . . . . . . . . . . . . 4 1 Weapon Failures 16 | . . . . . . 1 . . . . . . . . 3 . 1 . . . . 10 1 Overload Shots 14 | . . . . . . . . . 10 . . . . . 4 . . . . . . . . Effects 1 | . . . . . . . . . . . . . . . 1 . . . . . . . . Short Circuit 1 | . . . . . . . . . . . . . . . 1 . . . . . . . . Overflow Damage 3422 | . . . 7 636 . 52 . 228 1171 218 20 90 57 246 112 15 . 140 69 130 . 139 92 Projectiles 153 | . . . . 10 . . . . . . . . . 27 6 15 . 7 . . . 20 68 Explosions 259 | . . . 7 27 . . . . 25 2 . . 57 . . . . . . . . 117 24 Melee 3010 | . . . . 599 . 52 . 228 1146 216 20 90 . 219 106 . . 133 69 130 . 2 . Knockbacks 21 | . . . 1 1 . . . . . . . . . . 7 . . . . . . . 12 Impact . | . . . . . . . . . . . . . . . . . . . . . . . . Kinetic 21 | . . . 1 1 . . . . . . . . . . 7 . . . . . . . 12 Secondary . | . . . . . . . . . . . . . . . . . . . . . . . . Self-Inflicted Damage 338 | . . . 57 . . . . . 117 . . . 45 . . . 100 . . . . 19 . Shots 15 | . . . 3 . . . . . 7 . . . 1 . . . 2 . . . . 2 . Rammed 1 | . 1 . . . . . . . . . . . . . . . . . . . . . . Targets Rammed 3 | . 1 . . . . . . . . . . . . . . . . . . . . 1 1 Kicked 2 | . . . . . . . . . . . . . . . . . . . . . . 1 1 Crushed . | . . . . . . . . . . . . . . . . . . . . . . . . Highest Temperature 438 | 90 278 73 18 292 188 290 150 40 156 72 32 272 24 266 438 278 244 204 419 296 137 314 204 Average Temperature 82 | 34 53 32 9 84 72 115 88 20 40 31 14 119 13 139 135 74 73 84 108 108 95 68 67 Received Heat Transfer 3020 | . 60 . 36 439 66 36 39 63 174 56 . 24 9 256 673 99 . 18 63 . . 654 255 Effects 9 | . . . . 1 . 1 . . . . . . . 3 1 1 . . 2 . . . . Shutdowns 1 | . . . . . . . . . . . . . . . 1 . . . . . . . . Energy Bleed 7 | . . . . . . 1 . . . . . . . 3 . 1 . . 2 . . . . Interference 1 | . . . . 1 . . . . . . . . . . . . . . . . . . . Siege Activations 11 | . . . . . . . . . . . . . . . . . . . . . . 11 . Total Turns 329 | . . . . . . . . . . . . . . . . . . . . . . 329 . Longest Duration 94 | . . . . . . . . . . . . . . . . . . . . . . 94 . Martial Activations . | . . . . . . . . . . . . . . . . . . . . . . . . Shielding Activations . | . . . . . . . . . . . . . . . . . . . . . . . . Robots Disrupted 14 | . . . . . . . . . . . . . . . . . 12 . . . 2 . . Combat Hostiles 3 | . . . . . . . . . . . . . . . . . 3 . . . . . . Robots Corrupted 15 | . . 1 . . . . . . . 2 . 1 . . . . . . . . . 11 . Combat Hostiles 14 | . . 1 . . . . . . . 1 . 1 . . . . . . . . . 11 . Parts Fried 36 | . . 2 . . . . . . . 3 . 2 . . . . 3 . . 1 . 25 . Impact Corruptions . | . . . . . . . . . . . . . . . . . . . . . . . . Robots Melted 13 | . . . . . . . . . . . . . . 1 3 1 . 1 . 1 . 1 5 Combat Hostiles 12 | . . . . . . . . . . . . . . 1 3 1 . 1 . 1 . 1 4 Parts Melted 60 | 2 1 . . . . . . . 2 . . . . 1 20 9 . 3 3 2 1 5 11 Heat Transferred 25037 | 261 849 . 255 494 . 153 . . 1343 75 . . 175 2150 5516 1787 1025 333 1887 1157 1736 3700 2141 Parts Sabotaged 8 | . . . . . . . . . . . . . . . . . . . . . . 4 4 Parts Stolen . | . . . . . . . . . . . . . . . . . . . . . . . . Parts Stripped . | . . . . . . . . . . . . . . . . . . . . . . . . Power Chain Reactions 9 | . . . . . . 1 . . . . . . . . . . 3 . . . . 5 . Alert | -11 -10 -10 -10 -8 -8 -8 -8 -7 -7 -6 -6 -6 -6 -6 -6 -5 -5 -5 -5 -5 -5 -5 -4 ------- Run | Yrd Mat Min Sub Mat Gar Mat Gar Fac Sto Fac Was Fac Gar Fac Gar Fac Was Fac Ext Cet Arc Hub Fac Maximum Alert Level 5 | . . . . 3 4 4 4 3 5 4 2 . 3 3 4 3 . 1 1 1 . 5 4 Low Security (%) 34 | 100 100 100 . 11 . . . . . . 43 100 11 48 . 26 100 45 65 99 100 7 . Level 1 13 | . . . . 31 . . . . 13 . 43 . 18 12 13 45 . 54 34 . . 6 . Level 2 17 | . . . . 19 21 17 . 99 12 . 13 . 20 36 19 26 . . . . . 18 . Level 3 19 | . . . . 37 52 68 42 . 30 15 . . 49 1 36 1 . . . . . 34 . Level 4 11 | . . . . . 26 14 57 . 21 84 . . . . 29 . . . . . . 2 100 Level 5 . | . . . . . . . . . 2 . . . . . . . . . . . . . . High Security 3 | . . . . . . . . . 19 . . . . . . . . . . . . 29 . Max Security . | . . . . . . . . . . . . . . . . . . . . . . . . Sterilizations 3 | . . . . 1 . . . 1 1 . . . . . . . . . . . . . . Peak Influence 3422 | 5 110 15 . 914 1333 1225 1301 703 3422 1556 466 176 857 745 1482 782 64 292 361 207 124 2570 1557 Initial 1556 | . . 15 . 11 594 649 796 682 265 1556 466 29 117 449 361 777 64 . 110 175 10 . 1227 Average 584 | 1 34 . . 508 998 872 1090 583 1303 1286 232 23 588 309 867 321 1 150 181 119 12 1121 1390 Influence Increases 21851 | 20 336 . 175 1939 859 1050 605 724 4497 574 4 285 810 1933 1241 303 22 583 877 282 244 3522 966 Destroy 0b10 Robot/C 10045 | . 160 . 120 960 360 540 420 360 2100 340 . 140 285 795 615 150 . 225 390 120 60 1545 360 Destroy 0b10 Robot/NC 1110 | 20 35 . . 165 . 55 10 60 300 60 . 25 4 88 16 16 . 32 56 8 28 124 8 Destroy Leader 1848 | . 34 . 10 300 10 118 30 84 392 60 . 50 16 238 48 44 . 72 46 . . 240 56 Allied During Kill 3944 | . . . . 43 80 234 96 75 1348 43 . 67 247 422 74 19 . 132 252 128 88 592 4 Successful Hack 432 | . 26 . . 52 44 16 . 12 42 . . . 11 39 12 12 . 44 41 . . 9 72 Select Force Hacks 120 | . 60 . . 60 . . . . . . . . . . . . . . . . . . . Disable Machine 834 | . . . . 45 . 60 . 60 120 45 . . . 132 . 12 . 12 12 . 48 252 36 Anti-Garrison Action 816 | . . . . . 250 . . . . . . . 189 . 377 . . . . . . . . Destroy Structure 1667 | . 21 . . 74 70 27 19 13 180 26 4 3 58 171 63 50 22 54 56 26 20 592 118 Partial Spotted 27 | . . . . . . . . . 15 . . . . . . . . . 12 . . . . Lose Combat Pursuer 1008 | . . . 45 240 45 . 30 60 . . . . . 48 36 . . 12 12 . . 168 312 Influence Decreases 20302 | 20 296 40 152 1048 440 1158 529 1441 1659 2662 1296 159 121 2274 275 1601 206 356 790 569 271 1017 1922 Entered New Map 8145 | . . 25 . 12 320 684 429 619 319 1866 868 13 51 408 155 705 120 . 117 139 17 . 1278 Time Decay 7484 | 20 296 15 112 666 . 434 . 642 770 546 428 146 . 696 . 446 86 293 553 310 194 457 374 Lost Part 580 | . . . 40 20 . . . . 20 . . . 10 40 40 10 . . . . . 190 210 Lost Ally 2543 | . . . . 350 120 40 100 180 400 100 . . 60 180 80 140 . 63 120 120 60 370 60 Purge Threat 1550 | . . . . . . . . . 150 150 . . . 950 . 300 . . . . . . . Squads Dispatched 158 | . 2 . . 23 . 5 . 11 35 10 . 5 . 24 . 4 . 3 2 . . 26 8 Investigation 15 | . 2 . . 2 . 1 . 1 1 2 . 1 . . . 2 . . 1 . . . 2 Extermination 29 | . . . . . . . . 2 8 4 . 1 . 7 . 1 . 2 . . . 2 2 Reinforcement 31 | . . . . 3 . 2 . 1 5 1 . 1 . 10 . 1 . 1 1 . . 3 2 Assault 46 | . . . . 5 . 2 . 4 10 3 . . . 1 . . . . . . . 19 2 Garrison 37 | . . . . 13 . . . 3 11 . . 2 . 6 . . . . . . . 2 . Intercept . | . . . . . . . . . . . . . . . . . . . . . . . . Searches Triggered . | . . . . . . . . . . . . . . . . . . . . . . . . Unchained Authorized 1 | . . . . . . . . . 1 . . . . . . . . . . . . . . Construction Impeded 2 | . . . . . . . . . 1 . . . . . . . . . . . . . 1 Haulers Reinforced 6 | . . . . . . . . 1 2 1 . . . 1 . 1 . . . . . . . Active Scanning Responses . | . . . . . . . . . . . . . . . . . . . . . . . . Cargo Convoy Interrupts 1 | . . . . . . . . . . . . . . 1 . . . . . . . . . Stealth | -11 -10 -10 -10 -8 -8 -8 -8 -7 -7 -6 -6 -6 -6 -6 -6 -5 -5 -5 -5 -5 -5 -5 -4 --------- Run | Yrd Mat Min Sub Mat Gar Mat Gar Fac Sto Fac Was Fac Gar Fac Gar Fac Was Fac Ext Cet Arc Hub Fac Distress Signals 26 | . . . . 3 . 1 . 1 2 . . . . 3 . 1 . 2 2 2 . 7 2 Communications Jammed 32 | . . . . . . . . . . . . . . 4 5 . . 2 . . . 21 . Distress Signals 32 | . . . . . . . . . . . . . . 4 5 . . 2 . . . 21 . Times Spotted 888 | . 15 3 18 124 24 21 16 30 119 30 . 7 21 53 45 20 6 17 29 9 61 144 76 Peak Tracking Total 15 | . 3 1 7 7 3 6 9 6 15 6 . 3 4 8 12 5 2 4 5 5 2 15 13 Tactical Retreats 47 | . . 1 1 14 2 . 2 1 . . . . . 1 2 . . 1 1 . . 9 12 ID Masks Used 1 | . . . . . . . . . . . . . . 1 . . . . . . . . . IFF Responses 265 | . . . . . . . . . . . . . . 265 . . . . . . . . . Traps | -11 -10 -10 -10 -8 -8 -8 -8 -7 -7 -6 -6 -6 -6 -6 -6 -5 -5 -5 -5 -5 -5 -5 -4 ------- Run | Yrd Mat Min Sub Mat Gar Mat Gar Fac Sto Fac Was Fac Gar Fac Gar Fac Was Fac Ext Cet Arc Hub Fac Traps Triggered 45 | . 2 . . 2 5 . 2 . 4 3 . . 2 5 10 4 . 1 3 . . 1 1 Indirectly 5 | . . . . . . . . . 3 1 . . . . . . . . . . . 1 . Trap Hack Attempts . | . . . . . . . . . . . . . . . . . . . . . . . . Triggered . | . . . . . . . . . . . . . . . . . . . . . . . . Disarmed . | . . . . . . . . . . . . . . . . . . . . . . . . Reprogrammed . | . . . . . . . . . . . . . . . . . . . . . . . . Reused 2 | . . . 2 . . . . . . . . . . . . . . . . . . . . Traps Extracted . | . . . . . . . . . . . . . . . . . . . . . . . . Installed 2 | . . . 2 . . . . . . . . . . . . . . . . . . . . Triggered . | . . . . . . . . . . . . . . . . . . . . . . . . Most Traps Carried 1 | . . . 1 . . . . . . . . . . . . . . . . . . . . Machines | -11 -10 -10 -10 -8 -8 -8 -8 -7 -7 -6 -6 -6 -6 -6 -6 -5 -5 -5 -5 -5 -5 -5 -4 ---------- Run | Yrd Mat Min Sub Mat Gar Mat Gar Fac Sto Fac Was Fac Gar Fac Gar Fac Was Fac Ext Cet Arc Hub Fac Machines Disabled 81 | . . . 1 3 3 4 . 5 11 3 . . 4 11 4 1 . 1 1 1 4 21 3 Max in Single Turn 8 | . . . 1 2 1 2 . 1 1 2 . . 1 . 1 1 . 1 1 1 1 8 2 Garrison Access 11 | . . . . . . . . 3 1 1 . . . 2 . 1 . . . . . 2 1 Garrison Relay 11 | . . . . . 3 . . . . . . . 3 . 5 . . . . . . . . Network Hub 2 | . . . . . . . . . . . . . . . . . . . . . . 2 . Machines Repaired 2 | . . . . . . . . . . . . . . 2 . . . . . . . . . Machines Dismantled . | . . . . . . . . . . . . . . . . . . . . . . . . Machines Sabotaged . | . . . . . . . . . . . . . . . . . . . . . . . . Overloaded Fab Kills . | . . . . . . . . . . . . . . . . . . . . . . . . Hacking | -11 -10 -10 -10 -8 -8 -8 -8 -7 -7 -6 -6 -6 -6 -6 -6 -5 -5 -5 -5 -5 -5 -5 -4 --------- Run | Yrd Mat Min Sub Mat Gar Mat Gar Fac Sto Fac Was Fac Gar Fac Gar Fac Was Fac Ext Cet Arc Hub Fac Machines Accessed 135 | . 8 . 4 15 2 7 . 12 7 10 . 7 2 21 3 7 . 5 11 1 . 4 9 Terminals 76 | . 6 . . 8 2 5 . 5 6 5 . 2 2 7 3 4 . 3 11 1 . 2 4 Fabricators 13 | . . . . . . . . 4 . . . 1 . 4 . 1 . 1 . . . . 2 Repair Stations 7 | . . . . 2 . 1 . . 1 1 . 1 . 1 . . . . . . . . . Recycling Units 16 | . 2 . . 2 . . . . . 2 . 1 . 6 . 1 . 1 . . . . 1 Scanalyzers 6 | . . . . 2 . . . 2 . 1 . . . . . . . . . . . . 1 Garrison Access 13 | . . . . 1 . 1 . 1 . 1 . 2 . 3 . 1 . . . . . 2 1 Total Hacks 373 | . 33 . 7 59 4 29 . 25 18 19 . 18 3 53 4 18 . 20 22 1 . 10 30 Successful 212 | . 20 . 7 33 3 18 . 7 11 8 . 7 1 40 2 8 . 15 13 1 . 8 10 Failed 158 | . 12 . . 26 1 11 . 17 7 10 . 11 2 13 2 10 . 5 9 . . 2 20 Catastrophic 23 | . . . . 2 . 2 . 2 1 4 . 1 2 . 1 2 . . . . . . 6 Database Lockouts 3 | . 1 . . . . . . 1 . 1 . . . . . . . . . . . . . Manual 212 | . 22 . . 25 2 19 . 16 17 9 . 12 1 32 . 16 . 15 11 1 . 7 7 Terminals 204 | . 28 . . 25 4 19 . 8 16 8 . 6 3 15 4 10 . 11 22 1 . 6 18 Fabricators 36 | . . . . . . . . 10 . . . 3 . 10 . 3 . 2 . . . . 8 Repair Stations 33 | . . . . 17 . 8 . . 2 2 . 2 . 2 . . . . . . . . . Recycling Units 51 | . 5 . . 8 . . . . . 4 . 3 . 20 . 3 . 7 . . . . 1 Scanalyzers 15 | . . . . 6 . . . 5 . 3 . . . . . . . . . . . . 1 Garrison Access 27 | . . . . 3 . 2 . 2 . 2 . 4 . 6 . 2 . . . . . 4 2 Terminal Hacks 48 | . 5 . 7 3 2 . . 1 3 2 . . 1 7 2 3 . 4 5 1 . . 2 Record 5 | . . . 4 . . . . . . . . . . . . . . . . 1 . . . Robot Analysis 5 | . 2 . . 2 . . . 1 . . . . . . . . . . . . . . . Prototype ID Bank 2 | . . . . 1 . . . . . . . . . . . . . 1 . . . . . Open Door 8 | . . . 1 . . . . . 2 . . . . . 1 . . . 4 . . . . Branch Access Points 2 | . . . . . . . . . . . . . . 1 . . . 1 . . . . . Emergency Access Points 2 | . . . . . . . . . . . . . . 1 1 . . . . . . . . Terminal Index 2 | . . . . . . . . . . . . . . 1 . . . . . . . . 1 Fabricator Index 1 | . . . . . . . . . . . . . . . . . . 1 . . . . . Garrison Index 1 | . . . . . . . . . . . . . . 1 . . . . . . . . . Unreport Threat 7 | . . . . . . . . . 1 1 . . . 3 . 2 . . . . . . . Locate Traps 5 | . 2 . . . . . . . . . . . . . . . . 1 1 . . . 1 Maintenance Status 1 | . . . . . . . . . . 1 . . . . . . . . . . . . . Recall Investigation 1 | . . . . . . . . . . . . . . . . 1 . . . . . . . Hauler Manifests 1 | . 1 . . . . . . . . . . . . . . . . . . . . . . Garrison Registry 2 | . . . . . 1 . . . . . . . 1 . . . . . . . . . . Security Stations 1 | . . . . . 1 . . . . . . . . . . . . . . . . . . Proto ID Catalog 1 | . . . 1 . . . . . . . . . . . . . . . . . . . . Release Object 1 | . . . 1 . . . . . . . . . . . . . . . . . . . . Fabricator Hacks 2 | . . . . . . . . . . . . . . 1 . . . . . . . . 1 Network Status 2 | . . . . . . . . . . . . . . 1 . . . . . . . . 1 Repair Station Hacks 22 | . . . . 12 . 8 . . . . . . . 2 . . . . . . . . . Scan Component 11 | . . . . 6 . 4 . . . . . . . 1 . . . . . . . . . Repair 11 | . . . . 6 . 4 . . . . . . . 1 . . . . . . . . . Recycling Unit Hacks 11 | . . . . 1 . . . . . 1 . 3 . 5 . . . 1 . . . . . Report Inventory 4 | . . . . . . . . . . . . 1 . 3 . . . . . . . . . Retrieve Matter 2 | . . . . . . . . . . . . 1 . 1 . . . . . . . . . Retrieve Components 5 | . . . . 1 . . . . . 1 . 1 . 1 . . . 1 . . . . . Scanalyzer 7 | . . . . 3 . . . 2 . 1 . . . . . . . . . . . . 1 Insert Component 1 | . . . . . . . . 1 . . . . . . . . . . . . . . . Retrieve Study 6 | . . . . 3 . . . 1 . 1 . . . . . . . . . . . . 1 Garrison Access Hacks 21 | . . . . 1 . 2 . 2 . 2 . 2 . 5 . 2 . . . . . 3 2 Unlock Access 6 | . . . . 1 . 1 . . . . . 2 . 1 . . . . . . . 1 . Seal Access 7 | . . . . . . . . 1 . 1 . . . 2 . 1 . . . . . 1 1 Coupler Status 8 | . . . . . . 1 . 1 . 1 . . . 2 . 1 . . . . . 1 1 Unauthorized Hacks 101 | . 15 . . 13 1 8 . 2 8 2 . 2 . 20 . 3 . 10 8 . . 5 4 Terminals 60 | . 13 . . 10 1 8 . . 7 . . 2 . 2 . 1 . 4 8 . . 4 . Track 3 | . 1 . . . . . . . . . . . . . . . . . . . . 2 . Assimilate 2 | . . . . 2 . . . . . . . . . . . . . . . . . . . Botnet 26 | . 5 . . 2 1 3 . . 3 . . 2 . 2 . 1 . 3 2 . . 2 . Disrupt 1 | . 1 . . . . . . . . . . . . . . . . . . . . . . Operators 6 | . 1 . . 1 . 1 . . 1 . . . . . . . . 1 1 . . . . Skim 22 | . 5 . . 5 . 4 . . 3 . . . . . . . . . 5 . . . . Fabricators 16 | . . . . . . . . 2 . . . . . 8 . . . 2 . . . . 4 Report 2 | . . . . . . . . . . . . . . 1 . . . . . . . . 1 Liberate 3 | . . . . . . . . . . . . . . 2 . . . . . . . . 1 Fabnet 7 | . . . . . . . . 1 . . . . . 4 . . . 1 . . . . 1 Haulers 4 | . . . . . . . . 1 . . . . . 1 . . . 1 . . . . 1 Repair Stations 2 | . . . . . . . . . 1 1 . . . . . . . . . . . . . Patch 2 | . . . . . . . . . 1 1 . . . . . . . . . . . . . Recycling Units 20 | . 2 . . 2 . . . . . 1 . . . 9 . 2 . 4 . . . . . Monitor 3 | . . . . . . . . . . . . . . 1 . 1 . 1 . . . . . Reject 6 | . . . . . . . . . . . . . . 5 . . . 1 . . . . . Recyclers 4 | . . . . . . . . . . 1 . . . 1 . 1 . 1 . . . . . Mask 3 | . . . . . . . . . . . . . . 2 . . . 1 . . . . . Tunnel 4 | . 2 . . 2 . . . . . . . . . . . . . . . . . . . Scanalyzers . | . . . . . . . . . . . . . . . . . . . . . . . . Garrison Access 3 | . . . . 1 . . . . . . . . . 1 . . . . . . . 1 . Broadcast 2 | . . . . 1 . . . . . . . . . . . . . . . . . 1 . Reprogram 1 | . . . . . . . . . . . . . . 1 . . . . . . . . . Data Cores Recovered 1 | . . . . . . . . . . . . . . . . 1 . . . . . . . Used 1 | . . . . . . . . . . . . . . . . 1 . . . . . . . Hacking Detections 108 | . 8 . . 13 2 6 . 12 7 8 . 6 2 17 2 4 . 4 7 . . 4 6 Full Trace Events 5 | . . . . . . 1 . 1 . . . 1 . . . 2 . . . . . . . Feedback Events . | . . . . . . . . . . . . . . . . . . . . . . . . Feedback Blocked . | . . . . . . . . . . . . . . . . . . . . . . . . Robot Schematics Acquired . | . . . . . . . . . . . . . . . . . . . . . . . . Robots Built . | . . . . . . . . . . . . . . . . . . . . . . . . Authchips . | . . . . . . . . . . . . . . . . . . . . . . . . Time . | . . . . . . . . . . . . . . . . . . . . . . . . Total Robot Build Rating . | . . . . . . . . . . . . . . . . . . . . . . . . Part Schematics Acquired . | . . . . . . . . . . . . . . . . . . . . . . . . Parts Built . | . . . . . . . . . . . . . . . . . . . . . . . . Authchips . | . . . . . . . . . . . . . . . . . . . . . . . . Time . | . . . . . . . . . . . . . . . . . . . . . . . . Total Part Build Rating . | . . . . . . . . . . . . . . . . . . . . . . . . Part Studies Acquired 6 | . . . . 3 . . . 1 . 1 . . . . . . . . . . . . 1 Parts Repaired 11 | . . . . 6 . 4 . . . . . . . 1 . . . . . . . . . Time 440 | . . . . 256 . 122 . . . . . . . 62 . . . . . . . . . Parts Recycled . | . . . . . . . . . . . . . . . . . . . . . . . . Recycled Matter . | . . . . . . . . . . . . . . . . . . . . . . . . Retrieved Matter . | . . . . . . . . . . . . . . . . . . . . . . . . Retrieved Components 18 | . . . . 2 . . . . . 1 . 3 . 9 . . . 3 . . . . . Parts Scanalyzed . | . . . . . . . . . . . . . . . . . . . . . . . . Part Schematics Acquired . | . . . . . . . . . . . . . . . . . . . . . . . . Parts Damaged . | . . . . . . . . . . . . . . . . . . . . . . . . Bothacking | -11 -10 -10 -10 -8 -8 -8 -8 -7 -7 -6 -6 -6 -6 -6 -6 -5 -5 -5 -5 -5 -5 -5 -4 ------------ Run | Yrd Mat Min Sub Mat Gar Mat Gar Fac Sto Fac Was Fac Gar Fac Gar Fac Was Fac Ext Cet Arc Hub Fac Used RIF Installer 3 | . . . . . 1 . . . . . . . 1 . 1 . . . . . . . . Threat Obfuscator 1 | . . . . . . . . . . . . . 1 . . . . . . . . . . Structural Interface 1 | . . . . . . . . . . . . . . . 1 . . . . . . . . Robots Hacked 74 | . . . . 3 . . . 1 3 1 . 3 5 3 4 11 5 3 6 . . 21 5 Non-combat 16 | . . . . 2 . . . 1 . 1 . . . 2 . 5 . 1 3 . . . 1 Combat 58 | . . . . 1 . . . . 3 . . 3 5 1 4 6 5 2 3 . . 21 4 Robot Hacks Applied 50 | . . . . 3 . . . 1 3 1 . 3 6 8 4 9 5 1 4 1 . . 1 parse_system 12 | . . . . 3 . . . . 1 . . 3 1 2 . . . . 1 1 . . . find_chute 4 | . . . . . . . . 1 . 1 . . . . . 1 . . . . . . 1 hold_bot 1 | . . . . . . . . . . . . . . . . 1 . . . . . . . drop_inventory 6 | . . . . . . . . . . . . . . . . 2 . 1 3 . . . . purge_threat 5 | . . . . . . . . . . . . . . 5 . . . . . . . . . reprogram_traps 1 | . . . . . . . . . . . . . . 1 . . . . . . . . . ignore_targets 5 | . . . . . . . . . . . . . . . . . 5 . . . . . . amplify_resonance 2 | . . . . . . . . . 1 . . . . . . 1 . . . . . . . reboot_system 4 | . . . . . . . . . . . . . 3 . 1 . . . . . . . . overwrite_iff 2 | . . . . . . . . . 1 . . . . . . 1 . . . . . . . formatsys_low 1 | . . . . . . . . . . . . . . . . 1 . . . . . . . formatsys_high 7 | . . . . . . . . . . . . . 2 . 3 2 . . . . . . . Relay Couplers Released 66 | . . . . . 16 . . 5 3 3 . . 12 3 19 . . . . . . 5 . Machine Destruction 52 | . . . . . 12 . . 2 . 3 . . 12 3 19 . . . . . . 1 . Programmers 14 | . . . . . 4 . . 3 3 . . . . . . . . . . . . 4 . Attached 12 | . . . . . . . . . 1 . . . 3 2 2 3 1 . . . . . . Fabnet Peak Effective % 12 | . . . . . . . . . . . . . . . . 12 12 12 12 12 12 12 7 Autooverrided 31 | . . . . . . . . . . . . . . . . 2 . 2 2 . . 21 4 Robots Rewired 23 | . . . . . . . . . . . . . 2 . 4 . 3 . 12 . 2 . . Allies Hacked 9 | . . . . . . . . 1 4 1 . . . 2 . . . . . . . 1 . Hacks Repelled . | . . . . . . . . . . . . . . . . . . . . . . . . Allies | -11 -10 -10 -10 -8 -8 -8 -8 -7 -7 -6 -6 -6 -6 -6 -6 -5 -5 -5 -5 -5 -5 -5 -4 -------- Run | Yrd Mat Min Sub Mat Gar Mat Gar Fac Sto Fac Was Fac Gar Fac Gar Fac Was Fac Ext Cet Arc Hub Fac Total Allies 110 | . . . . 1 . . . . 11 . . . 6 . 9 6 22 2 21 5 2 21 4 Largest Group 22 | . . . . 1 . . . . 10 . . . 6 4 5 4 22 13 18 18 16 15 1 Highest-Rated Group 1237 | . . . . 10 . . . . 173 . . . 310 153 182 116 1099 782 957 1237 1165 1056 56 Highest-Rated Ally 159 | . . . . 10 . . . . 29 . . . 95 46 46 49 141 141 159 159 141 142 56 Total Orders 213 | . . . . 4 . . 2 1 87 . 2 2 2 55 . 1 9 . 6 23 6 13 . STAY 136 | . . . . 3 . . 1 . 60 . 1 1 1 29 . 1 7 . 4 15 3 10 . ROAM 1 | . . . . . . . . 1 . . . . . . . . . . . . . . . FOLLOW 67 | . . . . 1 . . 1 . 18 . 1 1 1 26 . . 2 . 2 8 3 3 . AID 9 | . . . . . . . . . 9 . . . . . . . . . . . . . . Ally Attacks 1776 | . . . . 86 50 86 86 106 453 53 . 38 78 176 48 36 28 65 117 45 20 192 13 Total Damage 49692 | . . . . 1786 1533 2709 2156 1885 11054 1534 . 986 2291 7270 1011 695 2193 1500 2546 965 955 6291 332 Kills 384 | . . . . 16 15 31 22 20 85 10 . 7 14 57 8 7 3 14 22 4 5 43 1 Allies Corrupted 4 | . . . . . . . . . . 1 . . . . . . . . . . . 3 . Allies Melted 4 | . . . . . . . 1 1 . . . . . 1 . . . . . . . 1 . Borg Created 79 | . . . . 21 7 . 5 8 15 9 . 2 3 9 . . . . . . . . . Largest Collective 7 | . . . . 4 5 . 4 4 7 3 . 4 4 7 . . . . . . . . . Intel | -11 -10 -10 -10 -8 -8 -8 -8 -7 -7 -6 -6 -6 -6 -6 -6 -5 -5 -5 -5 -5 -5 -5 -4 ------- Run | Yrd Mat Min Sub Mat Gar Mat Gar Fac Sto Fac Was Fac Gar Fac Gar Fac Was Fac Ext Cet Arc Hub Fac Active Infowar (turns) 20605 | 69 2197 307 5773 1837 . . . 2209 380 1113 1059 427 . 2871 221 242 220 504 67 . . 1098 11 Sensors 3382 | . . . . . . . . 672 111 1113 1059 427 . . . . . . . . . . . Terrain 20 | . . . . . . . . . . . . . . . . . . 20 . . . . . Structural 269 | . . . . . . . . . 269 . . . . . . . . . . . . . . Seismic 10217 | 69 2197 307 5773 1837 . . . . . . . . . 34 . . . . . . . . . Machine Analysis 1538 | . . . . . . . . 1538 . . . . . . . . . . . . . . . Cloaking 11 | . . . . . . . . . . . . . . . . . . . . . . . 11 Jamming 4826 | . . . . . . . . . . . . . . 2494 221 242 220 484 67 . . 1098 . ID Mask 377 | . . . . . . . . . . . . . . 377 . . . . . . . . . Robot Analysis Total 5 | . 2 . . 2 . . . 1 . . . . . . . . . . . . . . . Derelict Logs Recovered 1 | . . . 1 . . . . . . . . . . . . . . . . . . . . Drone Launches 1 | . . . . . . . . . . . . . . 1 . . . . . . . . . Drone Recoveries . | . . . . . . . . . . . . . . . . . . . . . . . . Exploration | -11 -10 -10 -10 -8 -8 -8 -8 -7 -7 -6 -6 -6 -6 -6 -6 -5 -5 -5 -5 -5 -5 -5 -4 ------------- Run | Yrd Mat Min Sub Mat Gar Mat Gar Fac Sto Fac Was Fac Gar Fac Gar Fac Was Fac Ext Cet Arc Hub Fac Turns Passed 50672 | 182 2281 407 6648 5984 1578 1068 551 2300 5765 1560 1059 670 1684 4360 2246 1117 3598 791 1614 698 1889 1743 879 Spaces Moved 23494 | 92 920 258 2999 2952 569 376 193 1270 2098 733 391 337 753 1978 931 662 1963 496 914 249 948 648 764 Core 312 | 9 2 . . . . . . . . . . . . . . . . . . . . 4 297 Treads 2486 | 83 628 2 . 6 . . . . . . . . . . . . . . . 186 948 632 1 Legs 157 | . . . . . . . . . . . . . . . 2 . . . . . . 11 144 Wheels 20268 | . 290 256 2999 2946 569 376 193 1270 2098 733 391 337 753 1978 929 662 1963 496 914 63 . . 52 Hover 54 | . . . . . . . . . . . . . . . . . . . . . . 1 53 Flight 217 | . . . . . . . . . . . . . . . . . . . . . . . 217 Fastest Speed 34 | 50 110 140 90 90 230 230 115 165 165 165 165 165 180 135 150 120 120 120 120 120 160 50 34 Average Speed 155 | 150 147 141 152 151 230 238 228 167 171 173 172 170 180 176 162 120 120 120 120 150 160 162 65 Slowest Speed 500 | 160 240 320 215 317 230 265 265 175 180 180 180 180 180 180 250 120 120 120 120 165 160 500 250 Overloaded Moves . | . . . . . . . . . . . . . . . . . . . . . . . . Propulsion Burnouts . | . . . . . . . . . . . . . . . . . . . . . . . . Robots Hopped 5 | . . . . . . . . . . . . . . . . . . . . . . . 5 Potential Cave-ins 3 | . . . . . . . . . . . . . . . . 3 . . . . . . . Cave-ins Triggered . | . . . . . . . . . . . . . . . . . . . . . . . . Exploration Rate (%) 58 | 5 92 34 84 98 61 40 31 42 95 26 96 12 77 55 93 18 95 12 97 57 98 68 28 Regions Visited 23 Branch Regions 7 Pre-discovered Areas 7 | . 3 . 1 3 . . . . . . . . . . . . . . . . . . . Known Exits Taken 8 | . 1 . . 1 . 1 . 1 1 . . 1 . 1 . . . 1 . . . . . Unknown Exits Taken 7 | 1 . 1 1 . . . . . . . . . . . . . . . 1 1 1 1 . Scrap Searched 4 | . . 1 3 . . . . . . . . . . . . . . . . . . . . Spaces Dug 359 | . 14 . 13 24 51 1 9 5 32 14 . 2 65 29 17 12 . 21 . 10 . 9 31 Terrain Destroyed 1361 | . 22 . 80 70 51 24 9 11 258 26 4 3 65 96 24 42 16 26 25 11 2 419 77 Melee 146 | . . . . 7 36 1 9 5 8 4 . 1 16 9 17 . . 19 . 10 . 4 . Projectile 287 | . 22 . 1 6 . . . . 1 . 4 2 . 45 7 41 . 7 25 1 2 104 19 AOE 927 | . . . 79 57 15 23 . 6 249 22 . . 49 42 . . 16 . . . . 311 58 Terrain Rammed . | . . . . . . . . . . . . . . . . . . . . . . . . Walls Destroyed . | . . . . . . . . . . . . . . . . . . . . . . . . Machines Disabled . | . . . . . . . . . . . . . . . . . . . . . . . . Actions | -11 -10 -10 -10 -8 -8 -8 -8 -7 -7 -6 -6 -6 -6 -6 -6 -5 -5 -5 -5 -5 -5 -5 -4 --------- Run | Yrd Mat Min Sub Mat Gar Mat Gar Fac Sto Fac Was Fac Gar Fac Gar Fac Was Fac Ext Cet Arc Hub Fac Total 34802 | 122 1727 285 5021 4171 752 535 272 1399 4022 962 743 402 1028 2647 1390 863 2885 624 1323 416 1232 983 998 Wait 7329 | . 669 1 1831 793 45 133 4 27 1599 121 298 3 154 336 55 38 566 59 266 20 191 66 54 Move 23466 | 91 919 257 2998 2951 568 376 192 1269 2097 733 390 336 752 1977 930 662 1962 495 913 248 947 647 756 Hop 3 | . . . . . . . . . . . . . . . . . . . . . . . 3 Pick Up 429 | 12 30 8 61 72 9 5 8 30 24 11 4 3 14 33 47 13 4 5 4 7 . 8 17 Fast Attach 153 | 7 9 . 5 21 2 1 3 5 7 2 2 4 1 14 10 8 3 5 1 8 5 5 25 Attach 108 | . . 3 6 5 . 1 . . 2 2 . 1 3 11 16 2 5 2 . 1 . 26 22 Detach 65 | . . . 4 6 . . . . 3 . . 3 . 4 7 . 1 1 . 1 . 19 16 Swap 550 | 1 31 12 21 99 5 3 1 8 96 30 7 22 14 69 26 30 5 11 16 9 7 26 1 Drop 420 | 4 22 . 55 50 11 3 15 20 25 13 7 7 14 36 51 14 10 8 9 15 4 13 14 Fire 1381 | 7 46 4 38 84 8 8 . 2 50 13 31 12 16 99 121 69 320 13 77 35 74 165 89 Melee 584 | . . . . 69 67 5 28 29 103 18 4 7 31 31 61 7 9 23 13 72 . 7 . Ram . | . . . . . . . . . . . . . . . . . . . . . . . . Kick 2 | . . . . . . . . . . . . . . . . . . . . . . 1 1 Crush 1 | . 1 . . . . . . . . . . . . . . . . . . . . . . Escape Stasis 192 | . . . . . 30 . 16 . . 8 . . 16 16 66 16 . . 24 . . . . Rewire 14 | . . . . . . . . . 1 . . . 7 2 . . . . . . 4 . . Trap 2 | . . . 2 . . . . . . . . . . . . . . . . . . . . Miscellaneous 103 | . . . . 21 7 . 5 9 15 11 . 4 6 19 . 4 . 2 . . . . . Route ------- -11/Scrapyard -10/Materials (discovered 6 exits: [*Mat x3] / *Min x2 / *Sub) -10/Mines (discovered 2 exits: [*Mat] / *Sub) -10/Subcaves (discovered 2 exits: *Mat x2) -8/Materials (discovered 4 exits: *Fac x3 / Gar) -8/Garrison (discovered 3 exits: *Mat x3) -8/Materials -8/Garrison -7/Factory (discovered 5 exits: *Fac x2 / *Sto x2 / *Low) -7/Storage (discovered 2 exits: *Fac / [*Rec]) -6/Factory (discovered 2 exits: *Fac / *Low) -6/Waste -6/Factory (discovered 2 exits: Gar / Gar) -6/Garrison (discovered 3 exits: *Fac x3) -6/Factory (discovered 5 exits: *Fac x2 / *Low x2 / Gar) -6/Garrison (discovered 3 exits: *Fac x3) -5/Factory (discovered 3 exits: *Upp / Ext x2) -5/Waste -5/Factory (discovered 4 exits: Upp x2 / *Ext x2) -5/Extension (discovered 2 exits: *Fac / *Cet) -5/Cetus (discovered 2 exits: *Fac / [*Arc]) -5/Archives (discovered 3 exits: *Fac / *Hub x2) -5/Hub_04(d) (discovered 3 exits: *Fac x3) -4/Factory (discovered 2 exits: [*Res] / [*Upp]) History --------- Turn | Location | Event 10 | -11/Scrapyard | Discovered new exit (range 14) 183 | -11/Scrapyard | Entered Materials 222 | -10/Materials | Central database locked down 284 | -10/Materials | Discovered new exit (range 16) 305 | -10/Materials | Build established: Mutant 389 | -10/Materials | Discovered new exit (range 12) 519 | -10/Materials | Discovered new exit (range 9) 857 | -10/Materials | Discovered new exit (range 4) 1293 | -10/Materials | Discovered new exit (range 3) 1931 | -10/Materials | Identified exit to Mines 1957 | -10/Materials | Learned Storage stockpile data 1973 | -10/Materials | Learned Storage terminal intel 1979 | -10/Materials | Learned 4 Subcaves zone layouts 1984 | -10/Materials | Learned Storage security intel 2019 | -10/Materials | Learned Storage stockpile data 2464 | -10/Materials | Entered Mines 2564 | -10/Mines | YI-UF0 nonchalantly dropped a Grenade Launcher on the ground 2599 | -10/Mines | Destroyed YI-UF0 2625 | -10/Mines | Lost 3 parts (1n1u1w) 2707 | -10/Mines | Discovered new exit (range 10) 2798 | -10/Mines | Discovered new exit (range 14) 2840 | -10/Mines | Assembled infested the area 2845 | -10/Mines | Assisted by a Guerilla fighting off Assembled 2871 | -10/Mines | Entered Subcaves 3170 | -10/Subcaves | Shifting Twisted Machinery released Mak. Flight Unit 3198 | -10/Subcaves | Shifting Twisted Machinery released Sub. Power Source 3208 | -10/Subcaves | Learned location of Zion (-6) 3208 | -10/Subcaves | Met a Zionite searching for "candidates" 3804 | -10/Subcaves | Visited Clippyterm 3808 | -10/Subcaves | Learned Factory emergency access door positions 5324 | -10/Subcaves | Discovered new exit (range 5) 5352 | -10/Subcaves | A swath of the cavern ceiling suddenly collapsed 5829 | -10/Subcaves | A swath of the cavern ceiling suddenly collapsed 6231 | -10/Subcaves | Learned location of 1 exit from Materials 6472 | -10/Subcaves | Build established: Scavenger-Mutant 7346 | -10/Subcaves | Discovered new exit (range 16) 7359 | -10/Subcaves | Ambushed by Subdweller buried in earth 7394 | -10/Subcaves | Lost 3 parts (1p2n) 7481 | -10/Subcaves | Visited 4L-MR0's lab 7517 | -10/Subcaves | Found Powered Cannon 7528 | -10/Subcaves | Found Prototype Special Melee Weapon 7661 | -10/Subcaves | Build established: Mutant 8600 | -10/Subcaves | A Subdweller sparked back to life 8603 | -10/Subcaves | Core integrity fell below 50% 8607 | -10/Subcaves | Ambushed by Subdweller buried in earth 8607 | -10/Subcaves | Ambushed by Subdweller buried in earth 8608 | -10/Subcaves | Core integrity fell below 20% 8639 | -10/Subcaves | Found Cargo Legs 9043 | -10/Subcaves | Build established: Hauler-Mutant 9124 | -10/Subcaves | Found SUBCON Basin 9519 | -10/Subcaves | Entered Materials 9519 | -8/Materials | Evolved 4 slots: Weapon x4 9520 | -8/Materials | Identified exit to Factory 10069 | -8/Materials | Build established: Executioner 10456 | -8/Materials | Discovered exit to Factory (range 16) 10475 | -8/Materials | Repaired Barrage Gun? 12405 | -8/Materials | Garrison activated, responded to threat 12472 | -8/Materials | Destroyed 7 combat bots 12485 | -8/Materials | Discovered exit to Factory (range 16) 13119 | -8/Materials | First assault squad dispatched 13191 | -8/Materials | Learned 4 Factory zone layouts 13214 | -8/Materials | Identified 1B-0RG's Assimilator 13222 | -8/Materials | Assimilating Trooper 3a into Collective. 13229 | -8/Materials | Assimilating Trooper 3b into Collective. 13235 | -8/Materials | Assimilating Soldier 3a into Collective. 13250 | -8/Materials | Assimilating Trooper 3c into Collective. 13261 | -8/Materials | Assimilating Trooper 3d into Collective. 13274 | -8/Materials | Assimilating Trooper 3e into Collective. 13277 | -8/Materials | Assimilating Bruiser 3a into Collective. 13300 | -8/Materials | Learned 2 Lower Caves zone layouts 13315 | -8/Materials | Assimilating Soldier 3b into Collective. 13343 | -8/Materials | Lost 8 allies 13370 | -8/Materials | Learned Storage stockpile data 13465 | -8/Materials | Learned location of 1 exit from Recycling 13507 | -8/Materials | Build established: Mutant 13771 | -8/Materials | Garrison activated, responded to threat 13890 | -8/Materials | Identified exit to Garrison 13933 | -8/Materials | Assimilating Rogue 3a into Collective. 13938 | -8/Materials | Assimilating Trooper 3f into Collective. 13941 | -8/Materials | Assimilating Soldier 3c into Collective. 13950 | -8/Materials | Assimilating Rogue 3b into Collective. 13978 | -8/Materials | Lost 4 allies 14351 | -8/Materials | Repaired Enh. Autogun 14379 | -8/Materials | Assimilating Rogue 3c into Collective. 14385 | -8/Materials | Assimilating Soldier 3d into Collective. 14397 | -8/Materials | Assimilating Trooper 3g into Collective. 14426 | -8/Materials | Assimilating Savior 3a into Collective. 14435 | -8/Materials | Assimilating Trooper 3h into Collective. 14443 | -8/Materials | Lost 4 allies 14489 | -8/Materials | Assimilating Smith 3a into Collective. 14560 | -8/Materials | Repaired Hrd. Medium Armor Plating 14599 | -8/Materials | Repaired Arm. Treads 14638 | -8/Materials | Repaired Arm. Treads 14683 | -8/Materials | Repaired Rnf. Deuterium Engine 14934 | -8/Materials | Assimilating Defender 3a into Collective. 14963 | -8/Materials | Core integrity fell below 50% 14984 | -8/Materials | Assimilating Defender 3b into Collective. 15047 | -8/Materials | Assimilating Defender 3c into Collective. 15120 | -8/Materials | Sterilization system engaged 15120 | -8/Materials | Non-combat units ordered to evacuate 15220 | -8/Materials | Combat units ordered to evacuate 15420 | -8/Materials | Ambient heat levels rising (+10) 15503 | -8/Materials | Entered Garrison 15503 | -8/Garrison | Accompanied by 4 allies 15543 | -8/Garrison | Build established: Hauler-Mutant 15649 | -8/Garrison | Triggered checkpoint 15767 | -8/Garrison | Assimilating Shotgunner 3a into Collective. 15836 | -8/Garrison | Garrison Relay disabled 15991 | -8/Garrison | Triggered checkpoint 16033 | -8/Garrison | Triggered checkpoint 16119 | -8/Garrison | Triggered checkpoint 16170 | -8/Garrison | Garrison Relay disabled 16289 | -8/Garrison | Discovered new exit (range 15) 16535 | -8/Garrison | Triggered checkpoint 16551 | -8/Garrison | Assimilating Rogue 3d into Collective. 16594 | -8/Garrison | Lost 4 allies 16605 | -8/Garrison | Triggered checkpoint 16675 | -8/Garrison | Discovered new exit (range 49) 16675 | -8/Garrison | Discovered new exit (range 23) 16675 | -8/Garrison | Discovered new exit (range 43) 16695 | -8/Garrison | Triggered checkpoint 16702 | -8/Garrison | Assimilating Trooper 3i into Collective. 16718 | -8/Garrison | Assimilating Trooper 3j into Collective. 16742 | -8/Garrison | Garrison Relay disabled 16764 | -8/Garrison | Installed Relay Interface Framework 16826 | -8/Garrison | Learned Materials security intel 16880 | -8/Garrison | Assimilating Hacker 3a into Collective. 16883 | -8/Garrison | Assimilating Hacker 3b into Collective. 16899 | -8/Garrison | Assimilating Hacker 3c into Collective. 17081 | -8/Garrison | Entered Materials 17081 | -8/Materials | Accompanied by 5 allies 17799 | -8/Materials | Repaired Com. Wheel+ 17844 | -8/Materials | Repaired Rnf. Deuterium Engine 17871 | -8/Materials | Repaired Huge Storage Unit 17881 | -8/Materials | First assault squad dispatched 17898 | -8/Materials | Repaired Seismic Detector 18149 | -8/Materials | Identified exit to Garrison 18149 | -8/Materials | Entered Garrison 18149 | -8/Garrison | Accompanied by 3 allies 18295 | -8/Garrison | Triggered checkpoint 18299 | -8/Garrison | Core integrity fell below 20% 18306 | -8/Garrison | Assimilating Hacker 3d into Collective. 18314 | -8/Garrison | Assimilating Hacker 3e into Collective. 18377 | -8/Garrison | Triggered checkpoint 18441 | -8/Garrison | Assimilating Hacker 3f into Collective. 18450 | -8/Garrison | Lost 4 allies 18451 | -8/Garrison | Assimilating Soldier 3e into Collective. 18454 | -8/Garrison | Assimilating Trooper 3k into Collective. 18529 | -8/Garrison | Triggered checkpoint 18683 | -8/Garrison | Discovered exit to Factory (range 10) 18700 | -8/Garrison | Entered Factory 18700 | -7/Factory | Accompanied by 2 allies 18700 | -7/Factory | Evolved 2 slots: Utility x2 18701 | -7/Factory | Identified exit to Storage 18702 | -7/Factory | Identified exit to Lower Caves 18794 | -7/Factory | Assimilating Transporter 4a into Collective. 18808 | -7/Factory | Build established: Mutant 18990 | -7/Factory | Garrison activated, responded to threat 19122 | -7/Factory | Assimilating Hacker 4a into Collective. 19166 | -7/Factory | Assimilating Trooper 4a into Collective. 19213 | -7/Factory | Assimilating Commando 4a into Collective. 19221 | -7/Factory | Assimilating Guardian 4a into Collective. 19253 | -7/Factory | Assimilating Gladiator 4a into Collective. 19257 | -7/Factory | Assimilating Fighter 4a into Collective. 19361 | -7/Factory | Central database locked down 19372 | -7/Factory | Released subatomizers from SUBCON Basin 19653 | -7/Factory | Discovered new exit (range 5) 19883 | -7/Factory | Assimilating Guardian 4b into Collective. 19900 | -7/Factory | First assault squad dispatched 20116 | -7/Factory | Sterilization system engaged 20116 | -7/Factory | Non-combat units ordered to evacuate 20216 | -7/Factory | Combat units ordered to evacuate 20416 | -7/Factory | Ambient heat levels rising (+10) 20566 | -7/Factory | Ambient heat levels rising (+10) 20616 | -7/Factory | Discovered new exit (range 10) 20631 | -7/Factory | Identified exit to Factory 20706 | -7/Factory | Found Powered Armor 20716 | -7/Factory | Ambient heat levels rising (+10) 20866 | -7/Factory | Ambient heat levels rising (+10) 21000 | -7/Factory | Entered Storage 21003 | -7/Storage | Loaded intel: 12 terminal locations 21047 | -7/Storage | Assimilating Trooper 4b into Collective. 21057 | -7/Storage | Assimilating Soldier 4a into Collective. 21065 | -7/Storage | Assimilating Trooper 4c into Collective. 21075 | -7/Storage | Assimilating Trooper 4d into Collective. 21137 | -7/Storage | Assimilating Guardian 4c into Collective. 21181 | -7/Storage | Garrison activated, responded to threat 21207 | -7/Storage | Unchained authorized (DW-4LL) 21270 | -7/Storage | Assimilating Fighter 4b into Collective. 21586 | -7/Storage | DW-4LL burst out of a wall 21601 | -7/Storage | Allies destroyed DW-4LL 21619 | -7/Storage | Garrison activated, responded to threat 21625 | -7/Storage | Found ID Mask 21668 | -7/Storage | Assimilating Guardian 4d into Collective. 21802 | -7/Storage | Assimilating Transporter 4b into Collective. 21816 | -7/Storage | Lost 3 allies 21835 | -7/Storage | Assimilating Hacker 4b into Collective. 21997 | -7/Storage | Assimilating Soldier 4b into Collective. 22026 | -7/Storage | Used back door to open Recycling access 22026 | -7/Storage | Discovered new exit (range 5) 22190 | -7/Storage | Discovered exit to Factory (range 18) 22590 | -7/Storage | Assimilating Guardian 4e into Collective. 22792 | -7/Storage | Found Prototype Launcher 22792 | -7/Storage | Identified Scatter Rocket Array 24200 | -7/Storage | First assault squad dispatched 24347 | -7/Storage | Assisted by bots powering up and referring to "LRC-V3" 24398 | -7/Storage | Assimilating Hacker 4c into Collective. 24547 | -7/Storage | Assimilating Smith 4a into Collective. 24642 | -7/Storage | Build established: Commander-Mutant 25445 | -7/Storage | Garrison activated, responded to threat 25549 | -7/Storage | Assimilating Smith 4b into Collective. 25629 | -7/Storage | High security lockdown imminent 25709 | -7/Storage | High security lockdown engaged 25758 | -7/Storage | Garrison activated, responded to threat 25795 | -7/Storage | Lost 3 allies 25870 | -7/Storage | Sterilization system engaged 25870 | -7/Storage | Non-combat units ordered to evacuate 25881 | -7/Storage | Assimilating Soldier 4c into Collective. 25893 | -7/Storage | Lost 12 allies 25963 | -7/Storage | Destroyed 20 combat bots 25970 | -7/Storage | Combat units ordered to evacuate 26112 | -7/Storage | Build established: Mutant 26170 | -7/Storage | Ambient heat levels rising (+10) 26320 | -7/Storage | Ambient heat levels rising (+10) 26470 | -7/Storage | Ambient heat levels rising (+10) 26620 | -7/Storage | Ambient heat levels rising (+10) 26765 | -7/Storage | Entered Factory 26765 | -6/Factory | Evolved 2 slots: Utility x2 26946 | -6/Factory | Central database locked down 27065 | -6/Factory | Assimilating Hacker 5a into Collective. 27117 | -6/Factory | Assimilating Informer 5a into Collective. 27430 | -6/Factory | Watched by a mysterious "MATRIX" hacker. 27435 | -6/Factory | Discovered new exit (range 15) 27461 | -6/Factory | Identified exit to Factory 27717 | -6/Factory | Assimilating Hacker 5b into Collective. 27815 | -6/Factory | First assault squad dispatched 27872 | -6/Factory | Assimilating Soldier 5a into Collective. 27906 | -6/Factory | Assimilating Soldier 5b into Collective. 27945 | -6/Factory | Assimilating Fighter 5a into Collective. 27994 | -6/Factory | Discovered new exit (range 19) 28101 | -6/Factory | Assimilating Hacker 5c into Collective. 28225 | -6/Factory | Assimilating Guardian 5a into Collective. 28236 | -6/Factory | Assimilating Hacker 5d into Collective. 28325 | -6/Factory | Sucked down chute 28325 | -6/Factory | Entered Waste 28325 | -6/Waste | The area was eerily silent 28340 | -6/Waste | 2 allies followed down the chute 28586 | -6/Waste | Discovered new exit (range 12) 29002 | -6/Waste | Murdered 3 allies 29382 | -6/Waste | Identified exit to Factory 29384 | -6/Waste | Entered Factory 29384 | -6/Factory | Accompanied by 2 allies 29411 | -6/Factory | Assimilating Soldier 5c into Collective. 29422 | -6/Factory | Assimilating Soldier 5d into Collective. 29433 | -6/Factory | Identified exit to Garrison 29502 | -6/Factory | Garrison activated, responded to threat 29998 | -6/Factory | Garrison activated, responded to threat 30043 | -6/Factory | Identified exit to Garrison 30054 | -6/Factory | Entered Garrison 30054 | -6/Garrison | Accompanied by 4 allies 30092 | -6/Garrison | Found embedded Infiltrators 30148 | -6/Garrison | Triggered checkpoint 30207 | -6/Garrison | Expanded RIF knowledge: Threat Obfuscation 30245 | -6/Garrison | Garrison Relay disabled 30332 | -6/Garrison | Discovered new exit (range 30) 30332 | -6/Garrison | Discovered new exit (range 50) 30332 | -6/Garrison | Discovered new exit (range 60) 30496 | -6/Garrison | Assimilating Hacker 5e into Collective. 30568 | -6/Garrison | Triggered checkpoint 30572 | -6/Garrison | Triggered checkpoint 30654 | -6/Garrison | Garrison Relay disabled 30860 | -6/Garrison | Triggered checkpoint 30902 | -6/Garrison | Triggered checkpoint 30955 | -6/Garrison | Build established: Bothacker-Mutant 30977 | -6/Garrison | Garrison Relay disabled 31288 | -6/Garrison | Assimilating E3-O72(x) into Collective. 31296 | -6/Garrison | Assimilating YY-QBY(x) into Collective. 31738 | -6/Garrison | Entered Factory 31738 | -6/Factory | Accompanied by 8 allies 32025 | -6/Factory | Assimilating Guardian 5b into Collective. 32030 | -6/Factory | Assimilating 6Z-2IR(g) into Collective. 32165 | -6/Factory | Repaired Antimatter Reactor? 32232 | -6/Factory | Build established: Mutant 33156 | -6/Factory | Assimilating Engineer 5a into Collective. 33218 | -6/Factory | Assimilating Engineer 5b into Collective. 33322 | -6/Factory | Assimilating Engineer 5c into Collective. 33613 | -6/Factory | Assimilating Excavator 5a into Collective. 33795 | -6/Factory | Found Powered Armor 33992 | -6/Factory | Assimilating Engineer 5d into Collective. 34018 | -6/Factory | Discovered exit to Factory (range 13) 34176 | -6/Factory | Spotted B-75 Beast 34187 | -6/Factory | Assimilating Beast 5a into Collective. 34238 | -6/Factory | Found Scatter Rocket Array 34244 | -6/Factory | Cargo convoy interrupted 34388 | -6/Factory | Found Unknown Device 34388 | -6/Factory | Identified Launcher Loader 34559 | -6/Factory | Discovered new exit (range 15) 34918 | -6/Factory | Build established: Hacker-Mutant 35032 | -6/Factory | Assimilating Guardian 5c into Collective. 35062 | -6/Factory | Identified exit to Lower Caves 35238 | -6/Factory | First assault squad dispatched 35522 | -6/Factory | Garrison activated, responded to threat 35524 | -6/Factory | Discovered exit to Factory (range 19) 35582 | -6/Factory | Lost 4 allies 35607 | -6/Factory | Garrison activated, responded to threat 35644 | -6/Factory | ID Mask engaged 35919 | -6/Factory | Identified exit to Garrison 36021 | -6/Factory | ID Mask no longer valid 36039 | -6/Factory | Core integrity fell below 50% 36098 | -6/Factory | Entered Garrison 36444 | -6/Garrison | Build established: Executioner 36451 | -6/Garrison | Triggered checkpoint 36490 | -6/Garrison | Destroyed 8 combat bots 36497 | -6/Garrison | Garrison Relay disabled 36662 | -6/Garrison | Triggered checkpoint 36662 | -6/Garrison | Spotted B-75 Beast 36686 | -6/Garrison | Destroyed B-75 Beast 36932 | -6/Garrison | Build established: Scavenger-Executioner 37126 | -6/Garrison | Discovered exit to Factory (range 6) 37160 | -6/Garrison | Triggered checkpoint 37193 | -6/Garrison | Garrison Relay disabled 37235 | -6/Garrison | Rescued a captive Derelict 37235 | -6/Garrison | Rescued a captive Derelict 37334 | -6/Garrison | Triggered checkpoint 37370 | -6/Garrison | Triggered checkpoint 37651 | -6/Garrison | Lost 3 allies 37723 | -6/Garrison | Destroyed 8 combat bots 37870 | -6/Garrison | Garrison Relay disabled 37911 | -6/Garrison | Expanded RIF knowledge: Structural Interface 37979 | -6/Garrison | Discovered exit to Factory (range 13) 37994 | -6/Garrison | Garrison Relay disabled 38138 | -6/Garrison | Triggered checkpoint 38175 | -6/Garrison | Build established: Bothacker-Executioner 38192 | -6/Garrison | Triggered checkpoint 38192 | -6/Garrison | Garrison Relay disabled 38286 | -6/Garrison | Triggered checkpoint 38302 | -6/Garrison | Discovered exit to Factory (range 11) 38344 | -6/Garrison | Entered Factory 38344 | -5/Factory | Accompanied by 4 allies 38344 | -5/Factory | Evolved 2 slots: Propulsion x2 38345 | -5/Factory | Identified exit to Extension 38681 | -5/Factory | Spotted B-75 Beast 38922 | -5/Factory | Local machine network offline 39238 | -5/Factory | Discovered new exit (range 12) 39461 | -5/Factory | Sucked down chute 39461 | -5/Factory | Entered Waste 39466 | -5/Waste | 1 allies followed down the chute 39478 | -5/Waste | Spotted C-40 Crusher 39490 | -5/Waste | Spotted C-40 Crusher 39510 | -5/Waste | Spotted C-40 Crusher 39528 | -5/Waste | Spotted C-40 Crusher 39535 | -5/Waste | Spotted C-40 Crusher 39554 | -5/Waste | Rewired C-40 Crusher 39627 | -5/Waste | Allies destroyed C-40 Crusher 39652 | -5/Waste | Spotted C-40 Crusher 39662 | -5/Waste | Found Damper Plating 39665 | -5/Waste | Allies destroyed C-40 Crusher 39739 | -5/Waste | Discovered new exit (range 12) 39834 | -5/Waste | Rewired C-40 Crusher 39879 | -5/Waste | Rewired C-40 Crusher 39975 | -5/Waste | Warlord forces began an assault 40103 | -5/Waste | Build established: Executioner 40219 | -5/Waste | Murdered 3 allies 40503 | -5/Waste | Murdered 4 allies 43059 | -5/Waste | Entered Factory 43059 | -5/Factory | Accompanied by 13 allies 43166 | -5/Factory | Identified exit to Upper Caves 43228 | -5/Factory | Found Prototype Launcher 43346 | -5/Factory | Local machine network offline 43380 | -5/Factory | Identified Tesla Bomb Launcher 43395 | -5/Factory | Lost 3 allies 43850 | -5/Factory | Entered Extension 43850 | -5/Extension | Accompanied by 7 allies 44019 | -5/Extension | Targeted by mysterious "MATRIX" hacker. 44316 | -5/Extension | Rescued a captive Derelict 44414 | -5/Extension | Rescued a captive Derelict 44420 | -5/Extension | Rescued a captive Derelict 44663 | -5/Extension | Spotted B-75 Beast 44683 | -5/Extension | Spotted B-75 Beast 44691 | -5/Extension | Allies destroyed B-75 Beast 44698 | -5/Extension | Build established: Commander-Executioner 44703 | -5/Extension | Allies destroyed B-75 Beast 44726 | -5/Extension | Lost 5 allies 44913 | -5/Extension | Rescued a captive Derelict 45076 | -5/Extension | Rescued A7 45138 | -5/Extension | Rescued a captive Derelict 45140 | -5/Extension | Rescued a captive Derelict 45422 | -5/Extension | Discovered new exit (range 16) 45423 | -5/Extension | Discovered new exit (range 15) 45464 | -5/Extension | Entered Cetus 45464 | -5/Cetus | Accompanied by 18 allies (A7) 45469 | -5/Cetus | Acquired a Cetus Manufacturing Module code from A7 45504 | -5/Cetus | Spotted Cetus Guard 45504 | -5/Cetus | Spotted Cetus Guard 45507 | -5/Cetus | Spotted Cetus Guard 45508 | -5/Cetus | Spotted Cetus Guard 45516 | -5/Cetus | Destroyed Cetus Guard 45521 | -5/Cetus | Allies destroyed Cetus Guard 45527 | -5/Cetus | Allies destroyed Cetus Guard 45530 | -5/Cetus | Allies destroyed Cetus Guard 45556 | -5/Cetus | Lost 5 allies 45626 | -5/Cetus | Started Cetus Manufacturing Module 45645 | -5/Cetus | Discovered new exit (range 16) 45651 | -5/Cetus | Manufactured an Enhanced Grunt 45676 | -5/Cetus | Manufactured an Enhanced Grunt 45686 | -5/Cetus | Spotted Cetus Guard 45687 | -5/Cetus | Spotted Cetus Guard 45690 | -5/Cetus | Spotted Cetus Guard 45690 | -5/Cetus | Spotted Cetus Guard 45697 | -5/Cetus | Destroyed Cetus Guard 45699 | -5/Cetus | Destroyed Cetus Guard 45700 | -5/Cetus | Destroyed Cetus Guard 45700 | -5/Cetus | Destroyed Cetus Guard 45701 | -5/Cetus | Manufactured an Enhanced Grunt 45712 | -5/Cetus | Discovered new exit (range 15) 45721 | -5/Cetus | Met Revision 17 45726 | -5/Cetus | Manufactured an Enhanced Grunt 45751 | -5/Cetus | Manufactured an Enhanced Grunt 45849 | -5/Cetus | Found a strange terminal 46006 | -5/Cetus | Found Med. Regenerative Plating 46162 | -5/Cetus | Entered Archives 46162 | -5/Archives | Accompanied by 16 allies (A7) 46214 | -5/Archives | Lost 3 allies 46304 | -5/Archives | Discovered new exit (range 15) 46364 | -5/Archives | Discovered new exit (range 15) 46494 | -5/Archives | Discovered new exit (range 14) 48051 | -5/Archives | Entered Hub_04(d) 48051 | -5/Hub_04(d) | Accompanied by 14 allies 48095 | -5/Hub_04(d) | Identified exit to Garrison 48145 | -5/Hub_04(d) | Spotted B-75 Beast 48162 | -5/Hub_04(d) | Allies destroyed B-75 Beast 48208 | -5/Hub_04(d) | Discovered new exit (range 9) 48485 | -5/Hub_04(d) | Local machine network offline 48609 | -5/Hub_04(d) | Discovered new exit (range 10) 48651 | -5/Hub_04(d) | First assault squad dispatched 48660 | -5/Hub_04(d) | Lost 5 allies 48803 | -5/Hub_04(d) | Lost 3 allies 48852 | -5/Hub_04(d) | Build established: Scavenger-Executioner 48868 | -5/Hub_04(d) | Garrison activated, responded to threat 48947 | -5/Hub_04(d) | Discovered new exit (range 4) 49214 | -5/Hub_04(d) | Network Hub disabled 49216 | -5/Hub_04(d) | Network Hub disabled 49276 | -5/Hub_04(d) | High security lockdown imminent 49286 | -5/Hub_04(d) | Spotted Lightning 49289 | -5/Hub_04(d) | Spotted Lightning 49296 | -5/Hub_04(d) | Spotted Lightning 49299 | -5/Hub_04(d) | Destroyed Lightning 49335 | -5/Hub_04(d) | Destroyed Lightning 49356 | -5/Hub_04(d) | High security lockdown engaged 49374 | -5/Hub_04(d) | Spotted Lightning 49375 | -5/Hub_04(d) | Spotted Lightning 49378 | -5/Hub_04(d) | Spotted Lightning 49396 | -5/Hub_04(d) | Destroyed 9 combat bots 49433 | -5/Hub_04(d) | Lost 3 allies 49442 | -5/Hub_04(d) | Destroyed 7 combat bots 49489 | -5/Hub_04(d) | Found Unknown Protection 49523 | -5/Hub_04(d) | Destroyed Lightning 49562 | -5/Hub_04(d) | Destroyed Lightning 49596 | -5/Hub_04(d) | Identified Hvy. Reflective Plating 49600 | -5/Hub_04(d) | System corruption reached 10% 49618 | -5/Hub_04(d) | Destroyed Lightning 49665 | -5/Hub_04(d) | Destroyed Lightning 49709 | -5/Hub_04(d) | System corruption reached 30% 49714 | -5/Hub_04(d) | Destroyed 23 combat bots 49725 | -5/Hub_04(d) | Attached Powered Cannon, gained temporary slot: Power 49761 | -5/Hub_04(d) | Attached Cargo Legs, gained temporary slots: Utility x2 49769 | -5/Hub_04(d) | Core integrity fell below 50% 49785 | -5/Hub_04(d) | Destroyed 10 combat bots 49789 | -5/Hub_04(d) | Core integrity fell below 20% 49794 | -5/Hub_04(d) | Entered Factory 49794 | -4/Factory | Evolved 2 slots: Power x1, Propulsion x1 49822 | -4/Factory | Lost 17 parts (6n5u6w) 49949 | -4/Factory | Spotted B-86 Titan 50022 | -4/Factory | Build established: Mutant 50249 | -4/Factory | Discovered new exit (range 8) 50252 | -4/Factory | Destroyed 7 combat bots 50268 | -4/Factory | System corruption reached 10% 50294 | -4/Factory | First assault squad dispatched 50298 | -4/Factory | Lost 3 parts (1n1u1w) 50396 | -4/Factory | Lost 3 parts (1n2u) 50403 | -4/Factory | Build established: Scavenger-Tank 50562 | -4/Factory | Lost 4 parts (2n1u1w) 50579 | -4/Factory | Discovered new exit (range 12) 50624 | -4/Factory | Core integrity fell below 50% 50672 | -4/Factory | Core integrity fell below 20% 50673 | -4/Factory | Destroyed by H-71 Marshal via exploding Fusion Modulator Last Messages --------------- 50652_ Acquired Gravmag Array. 50654_ ALERT: Suspicious intruders detected, dispatching Cutter reinforcements to area. 50656_ Door malfunctions. 50656_ Chain reaction triggered in Lgt. Ion Engine. 50656_ K-01 Serf destroyed. 50658_ VTOL Module destroyed. 50664_ System corrupted: Matter fused (-5). 50664_ Adv. Heat Sink destroyed. 50665_ Knocked back. 50669_ Impulse Thruster+ destroyed. 50669_ Knocked back. 50669_ Acquired 10 matter. 50672_ Acquired 7 matter. 50672_ Knocked back. 50672_ RIF reveals location of hidden door. 50672_ Knocked back. 50672_ RIF reveals location of hidden door. 50672_ Knocked back. 50673_ Fusion Modulator explodes. Map ----- +----------------------------------------------------+ | ??????????????????????????????? | | ??????????????????????????????? | | ??????????????????????????????? | | ??????????????????????????????? | | ??????????????????????????????? | | ??????????????????????????????? | | ??????????????????????????????? | | ???A??????????????????????????? | | ??????????????????????????????? | | ??????????????????????????????? | | ??????????????????????????????? | | ??????????????????????????????? | | ??????????????????????????????? | | ??????????????????????????????? | | ????#+?????????????#+#????????? | | ##??# #????????????# #????????? | | #??# #????????????# #????????? | | #??# #????????????# #?######## | | #??# #????????????# #?# # | | #??# +???????????## ### """ # | | #??# #??????????## # # """ # | | #### ###??????### """ !# | | ## % ###### # # | | ### % # | | c ]# | | ### ] ! c @ # | | ??# ####### # | | ??###"#### " "" # | | ??? ??# """"""""" # "R"" # | | ### ??# # """" # | | # ??# """"""""" ## # | | # " "??# ###+#+### | | # "Y" ?# """"""""" #???????? | | # """ ?# #???????? | | ######?# ?""""""""" #???????? | | #??????????????? #???????? | | #????????????????"" #???????? | | #????????????????? #???????? | | #?????????????????? ????????? | | #??????????????????#????????? | | #???????????????????????????? | | #???????????????????????????? | | ###???????????????????????????? | | ??????????????????????????????? | | ??????????????????????????????? | | ??????????????????????????????? | | ??????????????????????????????? | | ??????????????????????????????? | | ??????????????????????????????? | | ??????????????????????????????? | +----------------------------------------------------+ Best States ------------- Heat Dissipation 129 Energy Generation 31 Energy Capacity 400 Matter Stores 666 Matter Capacity 800 Sight Range 16 Robot Scan Range 18 Terrain Scan Range 20 Terrain Scan Density 10 Jamming Range 14 Cloak Strength 2 Base Temperature (-) 200 Corruption Block 4 Armor Coverage 3200 Resistance: KI 30 Resistance: TH 30 Resistance: EM 90 Utility Shielding 33 Weapon Shielding 66 Phase Shifting 10 Evasion (%) 70 Targeting Accuracy 8 Launcher Accuracy 20 Core Analysis 6 Recoil Reduction 4 Offensive Hacking 36 Defensive Hacking 12 Relay Coupler Types 2 Relay Coupler Value 49 Item Schematics ----------------- None Robot Schematics ------------------ None Fabricated ------------ Nothing Repaired ---------- Barrage Gun | 39% | -8/Materials Enh. Autogun | 72% | -8/Materials Hrd. Medium Armor Plating | 48% | -8/Materials Arm. Treads | 56% | -8/Materials Arm. Treads | 59% | -8/Materials Rnf. Deuterium Engine | 52% | -8/Materials Com. Wheel | 10% | -8/Materials Rnf. Deuterium Engine | 61% | -8/Materials Huge Storage Unit | 56% | -8/Materials Seismic Detector | 80% | -8/Materials Antimatter Reactor | 32% | -6/Factory Studied --------- Wheel | -8/Materials | Hacked Hvy. Assault Cannon | -8/Materials | Hacked Com. Wheel | -8/Materials | Hacked Arm. Huge Wheel | -7/Factory | Hacked Hyb. Deuterium Engine | -6/Factory | Hacked Impulse Thruster | -4/Factory | Hacked Alien Tech Used ----------------- None Achievements -------------- I Have Friends Everywhere Pestilence Professional Mechanic Yes I Work Here Challenges ------------ None Game ------ Seed BarrageCoreCarapace Manual? 0 Play Time 20:04:16 Cumulative 749.2 hours Start 2026.02.22 @ 13:38:15 End 2026.04.27 @ 17:51:13 Sessions 31 Manual Loads 0 Difficulty Rogue Special Mode None Game No. 69 Rogue 66 Adventurer 3 Explorer 0 Win Type - Total 25 Types 9/2/6/2/1/1/1/1/1/1 Lore% 86 Gallery% 88 Achievement% 84 Wizard Run 0 Options --------- Layout 0 ASCII 0 Keyboard 0 Movement Numpad Keybinds 0 Fullscreen 1 Font 18/SmallcapsGlow Map View 76x50 Zoom Use 0% Tactical HUD 1 Map Filters NONE Filters NONE Steam 1 RUN: adc5a0dd-946c-4f80-a5d9-db27ccb0cdb2